Workbook

Sheet Display
F2: CQG ARK Genomic Revolution ETF | AB2: =RTD("cqg.rtd", ,"SystemInfo", "Linetime") -> 45915.35738
B5: Exchange Traded Funds Performance | S5: Top 15 Positive Performing Companies
B6: Symbol | C6: Description | H6: Last | I6: NC | J6: %NC | K6: NC/ATR | L6: Open | M6: High | N6: Low | O6: Volume | Q6: Ratio
B7: ARKG | C7: =RTD("cqg.rtd", ,"ContractData",B7, "LongDescription",, "T") -> ARK Genomic Revolution ETF | H7: =RTD("cqg.rtd", ,"ContractData",B7, "LastTradeToday",, "T") -> 26 | I7: =RTD("cqg.rtd", ,"ContractData",B7, "NetLastTradeToday",, "T") -> 0.4 | J7: =IFERROR(RTD("cqg.rtd", ,"ContractData",B7, "PerCentNetLastTrade",, "T")/100,"") -> 0.015625 | K7: =IFERROR(I7/RTD("cqg.rtd",,"StudyData",B7, "ATR", "MaType=Sim,Period=10", "ATR","D","-1","ALL",,,"FALSE","T")/100,"") -> 0.00488997555 | L7: =RTD("cqg.rtd", ,"ContractData",B7, "OPen",, "T") -> 25.84 | M7: =RTD("cqg.rtd", ,"ContractData", B7, "HIgh",, "T") -> 26.08 | N7: =RTD("cqg.rtd", ,"ContractData",B7, "LOw",, "T") -> 25.81 | O7: =RTD("cqg.rtd", ,"ContractData",B7, "T_CVol",, "T") -> 104850 | Q7: =IFERROR(O7/RTD("cqg.rtd",,"StudyData",B7, "MA", "InputChoice=Vol,MAType=Sim,Period=21", "MA","D","-1","all",,,,"T"),"") -> 0.05451513763
B8: SPY | C8: =RTD("cqg.rtd", ,"ContractData",B8, "LongDescription",, "T") -> SPDR S&P 500 | H8: =RTD("cqg.rtd", ,"ContractData",B8, "LastTradeToday",, "T") -> 659.88 | I8: =RTD("cqg.rtd", ,"ContractData",B8, "NetLastTradeToday",, "T") -> 2.48 | J8: =IFERROR(RTD("cqg.rtd", ,"ContractData",B8, "PerCentNetLastTrade",, "T")/100,"") -> 0.003772436873 | K8: =IFERROR(I8/RTD("cqg.rtd",,"StudyData",B8, "ATR", "MaType=Sim,Period=10", "ATR","D","-1","ALL",,,"FALSE","T")/100,"") -> 0.004631185808 | L8: =RTD("cqg.rtd", ,"ContractData",B8, "OPen",, "T") -> 659.64 | M8: =RTD("cqg.rtd", ,"ContractData", B8, "HIgh",, "T") -> 660.12 | N8: =RTD("cqg.rtd", ,"ContractData",B8, "LOw",, "T") -> 659.47 | O8: =RTD("cqg.rtd", ,"ContractData",B8, "T_CVol",, "T") -> 3038286 | Q8: =IFERROR(O8/RTD("cqg.rtd",,"StudyData",B8, "MA", "InputChoice=Vol,MAType=Sim,Period=21", "MA","D","-1","all",,,,"T"),"") -> 0.04526048133
B9: XLF | C9: =RTD("cqg.rtd", ,"ContractData",B9, "LongDescription",, "T") -> Financial Select Sector SPDR | H9: =RTD("cqg.rtd", ,"ContractData",B9, "LastTradeToday",, "T") -> 53.93 | I9: =RTD("cqg.rtd", ,"ContractData",B9, "NetLastTradeToday",, "T") -> 0.13 | J9: =IFERROR(RTD("cqg.rtd", ,"ContractData",B9, "PerCentNetLastTrade",, "T")/100,"") -> 0.002416356877 | K9: =IFERROR(I9/RTD("cqg.rtd",,"StudyData",B9, "ATR", "MaType=Sim,Period=10", "ATR","D","-1","ALL",,,"FALSE","T")/100,"") -> 0.00205371248 | L9: =RTD("cqg.rtd", ,"ContractData",B9, "OPen",, "T") -> 53.89 | M9: =RTD("cqg.rtd", ,"ContractData", B9, "HIgh",, "T") -> 54.01 | N9: =RTD("cqg.rtd", ,"ContractData",B9, "LOw",, "T") -> 53.87 | O9: =RTD("cqg.rtd", ,"ContractData",B9, "T_CVol",, "T") -> 1261416 | Q9: =IFERROR(O9/RTD("cqg.rtd",,"StudyData",B9, "MA", "InputChoice=Vol,MAType=Sim,Period=21", "MA","D","-1","all",,,,"T"),"") -> 0.03510259638
B10: S.XLY | C10: =RTD("cqg.rtd", ,"ContractData",B10, "LongDescription",, "T") -> Consumer Discretionary Select SectorSPDR | H10: =RTD("cqg.rtd", ,"ContractData",B10, "LastTradeToday",, "T") -> 242.54 | I10: =RTD("cqg.rtd", ,"ContractData",B10, "NetLastTradeToday",, "T") -> 3.95 | J10: =IFERROR(RTD("cqg.rtd", ,"ContractData",B10, "PerCentNetLastTrade",, "T")/100,"") -> 0.01655282236 | K10: =IFERROR(I10/RTD("cqg.rtd",,"StudyData",B10, "ATR", "MaType=Sim,Period=10", "ATR","D","-1","ALL",,,"FALSE","T")/100,"") -> 0.01271322819 | L10: =RTD("cqg.rtd", ,"ContractData",B10, "OPen",, "T") -> 242.44 | M10: =RTD("cqg.rtd", ,"ContractData", B10, "HIgh",, "T") -> 242.77 | N10: =RTD("cqg.rtd", ,"ContractData",B10, "LOw",, "T") -> 241.84 | O10: =RTD("cqg.rtd", ,"ContractData",B10, "T_CVol",, "T") -> 172073 | Q10: =IFERROR(O10/RTD("cqg.rtd",,"StudyData",B10, "MA", "InputChoice=Vol,MAType=Sim,Period=21", "MA","D","-1","all",,,,"T"),"") -> 0.02495694026
B11: S.FXI | C11: =RTD("cqg.rtd", ,"ContractData",B11, "LongDescription",, "T") -> iShares China Large-Cap ETF | H11: =RTD("cqg.rtd", ,"ContractData",B11, "LastTradeToday",, "T") -> 40.8 | I11: =RTD("cqg.rtd", ,"ContractData",B11, "NetLastTradeToday",, "T") -> 0.31 | J11: =IFERROR(RTD("cqg.rtd", ,"ContractData",B11, "PerCentNetLastTrade",, "T")/100,"") -> 0.00765621141 | K11: =IFERROR(I11/RTD("cqg.rtd",,"StudyData",B11, "ATR", "MaType=Sim,Period=10", "ATR","D","-1","ALL",,,"FALSE","T")/100,"") -> 0.005166666667 | L11: =RTD("cqg.rtd", ,"ContractData",B11, "OPen",, "T") -> 40.88 | M11: =RTD("cqg.rtd", ,"ContractData", B11, "HIgh",, "T") -> 40.88 | N11: =RTD("cqg.rtd", ,"ContractData",B11, "LOw",, "T") -> 40.8 | O11: =RTD("cqg.rtd", ,"ContractData",B11, "T_CVol",, "T") -> 1507048 | Q11: =IFERROR(O11/RTD("cqg.rtd",,"StudyData",B11, "MA", "InputChoice=Vol,MAType=Sim,Period=21", "MA","D","-1","all",,,,"T"),"") -> 0.04881535017
B12: IWF | C12: =RTD("cqg.rtd", ,"ContractData",B12, "LongDescription",, "T") -> iShares Russell 1000 Growth ETF | H12: =RTD("cqg.rtd", ,"ContractData",B12, "LastTradeToday",, "T") -> 462.47 | I12: =RTD("cqg.rtd", ,"ContractData",B12, "NetLastTradeToday",, "T") -> 2.33 | J12: =IFERROR(RTD("cqg.rtd", ,"ContractData",B12, "PerCentNetLastTrade",, "T")/100,"") -> 0.005063676272 | K12: =IFERROR(I12/RTD("cqg.rtd",,"StudyData",B12, "ATR", "MaType=Sim,Period=10", "ATR","D","-1","ALL",,,"FALSE","T")/100,"") -> 0.004392911011 | L12: =RTD("cqg.rtd", ,"ContractData",B12, "OPen",, "T") -> 462.35 | M12: =RTD("cqg.rtd", ,"ContractData", B12, "HIgh",, "T") -> 462.85 | N12: =RTD("cqg.rtd", ,"ContractData",B12, "LOw",, "T") -> 462.23 | O12: =RTD("cqg.rtd", ,"ContractData",B12, "T_CVol",, "T") -> 33048 | Q12: =IFERROR(O12/RTD("cqg.rtd",,"StudyData",B12, "MA", "InputChoice=Vol,MAType=Sim,Period=21", "MA","D","-1","all",,,,"T"),"") -> 0.03913092679
B13: IWO | C13: =RTD("cqg.rtd", ,"ContractData",B13, "LongDescription",, "T") -> iShares Russell 2000 Growth ETF | H13: =RTD("cqg.rtd", ,"ContractData",B13, "LastTradeToday",, "T") -> 314.3 | I13: =RTD("cqg.rtd", ,"ContractData",B13, "NetLastTradeToday",, "T") -> 1.43 | J13: =IFERROR(RTD("cqg.rtd", ,"ContractData",B13, "PerCentNetLastTrade",, "T")/100,"") -> 0.004570588423 | K13: =IFERROR(I13/RTD("cqg.rtd",,"StudyData",B13, "ATR", "MaType=Sim,Period=10", "ATR","D","-1","ALL",,,"FALSE","T")/100,"") -> 0.003228719801 | L13: =RTD("cqg.rtd", ,"ContractData",B13, "OPen",, "T") -> 314.43 | M13: =RTD("cqg.rtd", ,"ContractData", B13, "HIgh",, "T") -> 314.53 | N13: =RTD("cqg.rtd", ,"ContractData",B13, "LOw",, "T") -> 314.15 | O13: =RTD("cqg.rtd", ,"ContractData",B13, "T_CVol",, "T") -> 5878 | Q13: =IFERROR(O13/RTD("cqg.rtd",,"StudyData",B13, "MA", "InputChoice=Vol,MAType=Sim,Period=21", "MA","D","-1","all",,,,"T"),"") -> 0.02211660643
B14: EP | C14: =RTD("cqg.rtd", ,"ContractData",B14, "LongDescription",, "T") -> E-Mini S&P 500, Dec 25 | H14: =RTD("cqg.rtd", ,"ContractData",B14, "LastTradeToday",, "T") -> 6669.25 | I14: =RTD("cqg.rtd", ,"ContractData",B14, "NetLastTradeToday",, "T") -> 24.25 | J14: =IFERROR(RTD("cqg.rtd", ,"ContractData",B14, "PerCentNetLastTrade",, "T")/100,"") -> 0.003649360421 | K14: =IFERROR(I14/RTD("cqg.rtd",,"StudyData",B14, "ATR", "MaType=Sim,Period=10", "ATR","D","-1","ALL",,,"FALSE","T")/100,"") -> 0.004110169492 | L14: =RTD("cqg.rtd", ,"ContractData",B14, "OPen",, "T") -> 6645 | M14: =RTD("cqg.rtd", ,"ContractData", B14, "HIgh",, "T") -> 6671.5 | N14: =RTD("cqg.rtd", ,"ContractData",B14, "LOw",, "T") -> 6641.75 | O14: =RTD("cqg.rtd", ,"ContractData",B14, "T_CVol",, "T") -> 269363 | Q14: =IFERROR(O14/RTD("cqg.rtd",,"StudyData",B14, "MA", "InputChoice=Vol,MAType=Sim,Period=21", "MA","D","-1","all",,,,"T"),"") -> 0.2020755041
B15: XLE | C15: =RTD("cqg.rtd", ,"ContractData",B15, "LongDescription",, "T") -> Energy Select Sector SPDR | H15: =RTD("cqg.rtd", ,"ContractData",B15, "LastTradeToday",, "T") -> 88.43 | I15: =RTD("cqg.rtd", ,"ContractData",B15, "NetLastTradeToday",, "T") -> -0.17 | J15: =IFERROR(RTD("cqg.rtd", ,"ContractData",B15, "PerCentNetLastTrade",, "T")/100,"") -> -0.001918735892 | K15: =IFERROR(I15/RTD("cqg.rtd",,"StudyData",B15, "ATR", "MaType=Sim,Period=10", "ATR","D","-1","ALL",,,"FALSE","T")/100,"") -> -0.001115485564 | L15: =RTD("cqg.rtd", ,"ContractData",B15, "OPen",, "T") -> 88.77 | M15: =RTD("cqg.rtd", ,"ContractData", B15, "HIgh",, "T") -> 88.87 | N15: =RTD("cqg.rtd", ,"ContractData",B15, "LOw",, "T") -> 88.39 | O15: =RTD("cqg.rtd", ,"ContractData",B15, "T_CVol",, "T") -> 1084939 | Q15: =IFERROR(O15/RTD("cqg.rtd",,"StudyData",B15, "MA", "InputChoice=Vol,MAType=Sim,Period=21", "MA","D","-1","all",,,,"T"),"") -> 0.07646484679
B16: USO | C16: =RTD("cqg.rtd", ,"ContractData",B16, "LongDescription",, "T") -> United States Oil Fund | H16: =RTD("cqg.rtd", ,"ContractData",B16, "LastTradeToday",, "T") -> 74.17 | I16: =RTD("cqg.rtd", ,"ContractData",B16, "NetLastTradeToday",, "T") -> 0.76 | J16: =IFERROR(RTD("cqg.rtd", ,"ContractData",B16, "PerCentNetLastTrade",, "T")/100,"") -> 0.01035281297 | K16: =IFERROR(I16/RTD("cqg.rtd",,"StudyData",B16, "ATR", "MaType=Sim,Period=10", "ATR","D","-1","ALL",,,"FALSE","T")/100,"") -> 0.004752970607 | L16: =RTD("cqg.rtd", ,"ContractData",B16, "OPen",, "T") -> 73.87 | M16: =RTD("cqg.rtd", ,"ContractData", B16, "HIgh",, "T") -> 74.3 | N16: =RTD("cqg.rtd", ,"ContractData",B16, "LOw",, "T") -> 73.84 | O16: =RTD("cqg.rtd", ,"ContractData",B16, "T_CVol",, "T") -> 175646 | Q16: =IFERROR(O16/RTD("cqg.rtd",,"StudyData",B16, "MA", "InputChoice=Vol,MAType=Sim,Period=21", "MA","D","-1","all",,,,"T"),"") -> 0.03914618254
C17: Top 15 Description | H17: Last | I17: NC | J17: %NC | K17: NC/ATR | L17: Open | M17: High | N17: Low | O17: Volume | Q17: Ratio
A18: =TRIM(ARKG!O1) -> S.US.NTLA | B18: News | C18: =IFERROR(RTD("cqg.rtd", ,"ContractData",A18, "LongDescription",, "T")&" ("&RIGHT(A18,LEN(A18)-5)&")","") -> Intellia Therapeutics, Inc. (NTLA) | H18: =IFERROR(RTD("cqg.rtd", ,"ContractData",A18, "LastTradeToday",, "T"),"") -> 11.95 | I18: =IFERROR(RTD("cqg.rtd", ,"ContractData",A18, "NetLastTradeToday",, "T"),"") -> 0.53 | J18: =IFERROR(RTD("cqg.rtd", ,"ContractData",A18, "PerCentNetLastTrade",, "T")/100,"") -> 0.04640980736 | K18: =IFERROR(I18/RTD("cqg.rtd",,"StudyData",A18, "ATR", "MaType=Sim,Period=10", "ATR","D","-1","ALL",,,"FALSE","T")/100,"") -> 0.007604017217 | L18: =IFERROR(RTD("cqg.rtd", ,"ContractData",A18, "OPen",, "T"),"") -> 11.75 | M18: =IFERROR(RTD("cqg.rtd", ,"ContractData", A18, "HIgh",, "T"),"") -> 12.04 | N18: =IFERROR(RTD("cqg.rtd", ,"ContractData",A18, "LOw",, "T"),"") -> 11.71 | O18: =IFERROR(RTD("cqg.rtd", ,"ContractData",A18, "T_CVol",, "T"),"") -> 439422 | Q18: =IFERROR(O18/RTD("cqg.rtd",,"StudyData",A18, "MA", "InputChoice=Vol,MAType=Sim,Period=21", "MA","D","-1","all",,,,"T"),"") -> 0.1045694816 | R18: =ARKG!R1 -> https://finance.yahoo.com/quote/NTLA
A19: =TRIM(ARKG!O2) -> S.US.RXRX | B19: News | C19: =IFERROR(RTD("cqg.rtd", ,"ContractData",A19, "LongDescription",, "T")&" ("&RIGHT(A19,LEN(A19)-5)&")","") -> Recursion Pharmaceuticals, Inc. Class A (RXRX) | H19: =IFERROR(RTD("cqg.rtd", ,"ContractData",A19, "LastTradeToday",, "T"),"") -> 5.05 | I19: =IFERROR(RTD("cqg.rtd", ,"ContractData",A19, "NetLastTradeToday",, "T"),"") -> 0.22 | J19: =IFERROR(RTD("cqg.rtd", ,"ContractData",A19, "PerCentNetLastTrade",, "T")/100,"") -> 0.04554865424 | K19: =IFERROR(I19/RTD("cqg.rtd",,"StudyData",A19, "ATR", "MaType=Sim,Period=10", "ATR","D","-1","ALL",,,"FALSE","T")/100,"") -> 0.008943089431 | L19: =IFERROR(RTD("cqg.rtd", ,"ContractData",A19, "OPen",, "T"),"") -> 4.93 | M19: =IFERROR(RTD("cqg.rtd", ,"ContractData", A19, "HIgh",, "T"),"") -> 5.09 | N19: =IFERROR(RTD("cqg.rtd", ,"ContractData",A19, "LOw",, "T"),"") -> 4.92 | O19: =IFERROR(RTD("cqg.rtd", ,"ContractData",A19, "T_CVol",, "T"),"") -> 3083131 | Q19: =IFERROR(O19/RTD("cqg.rtd",,"StudyData",A19, "MA", "InputChoice=Vol,MAType=Sim,Period=21", "MA","D","-1","all",,,,"T"),"") -> 0.1895480559 | R19: =ARKG!R2 -> https://finance.yahoo.com/quote/RXRX
A20: =TRIM(ARKG!O3) -> S.US.PRME | B20: News | C20: =IFERROR(RTD("cqg.rtd", ,"ContractData",A20, "LongDescription",, "T")&" ("&RIGHT(A20,LEN(A20)-5)&")","") -> Prime Medicine, Inc. (PRME) | H20: =IFERROR(RTD("cqg.rtd", ,"ContractData",A20, "LastTradeToday",, "T"),"") -> 4.23 | I20: =IFERROR(RTD("cqg.rtd", ,"ContractData",A20, "NetLastTradeToday",, "T"),"") -> 0.16 | J20: =IFERROR(RTD("cqg.rtd", ,"ContractData",A20, "PerCentNetLastTrade",, "T")/100,"") -> 0.03931203931 | K20: =IFERROR(I20/RTD("cqg.rtd",,"StudyData",A20, "ATR", "MaType=Sim,Period=10", "ATR","D","-1","ALL",,,"FALSE","T")/100,"") -> 0.005479452055 | L20: =IFERROR(RTD("cqg.rtd", ,"ContractData",A20, "OPen",, "T"),"") -> 4.18 | M20: =IFERROR(RTD("cqg.rtd", ,"ContractData", A20, "HIgh",, "T"),"") -> 4.28 | N20: =IFERROR(RTD("cqg.rtd", ,"ContractData",A20, "LOw",, "T"),"") -> 4.17 | O20: =IFERROR(RTD("cqg.rtd", ,"ContractData",A20, "T_CVol",, "T"),"") -> 280327 | Q20: =IFERROR(O20/RTD("cqg.rtd",,"StudyData",A20, "MA", "InputChoice=Vol,MAType=Sim,Period=21", "MA","D","-1","all",,,,"T"),"") -> 0.09747513173 | R20: =ARKG!R3 -> https://finance.yahoo.com/quote/PRME
A21: =TRIM(ARKG!O4) -> S.US.ABSI | B21: News | C21: =IFERROR(RTD("cqg.rtd", ,"ContractData",A21, "LongDescription",, "T")&" ("&RIGHT(A21,LEN(A21)-5)&")","") -> Absci Corporation (ABSI) | H21: =IFERROR(RTD("cqg.rtd", ,"ContractData",A21, "LastTradeToday",, "T"),"") -> 2.65 | I21: =IFERROR(RTD("cqg.rtd", ,"ContractData",A21, "NetLastTradeToday",, "T"),"") -> 0.1 | J21: =IFERROR(RTD("cqg.rtd", ,"ContractData",A21, "PerCentNetLastTrade",, "T")/100,"") -> 0.03921568627 | K21: =IFERROR(I21/RTD("cqg.rtd",,"StudyData",A21, "ATR", "MaType=Sim,Period=10", "ATR","D","-1","ALL",,,"FALSE","T")/100,"") -> 0.005347593583 | L21: =IFERROR(RTD("cqg.rtd", ,"ContractData",A21, "OPen",, "T"),"") -> 2.57 | M21: =IFERROR(RTD("cqg.rtd", ,"ContractData", A21, "HIgh",, "T"),"") -> 2.66 | N21: =IFERROR(RTD("cqg.rtd", ,"ContractData",A21, "LOw",, "T"),"") -> 2.57 | O21: =IFERROR(RTD("cqg.rtd", ,"ContractData",A21, "T_CVol",, "T"),"") -> 533337 | Q21: =IFERROR(O21/RTD("cqg.rtd",,"StudyData",A21, "MA", "InputChoice=Vol,MAType=Sim,Period=21", "MA","D","-1","all",,,,"T"),"") -> 0.1256235132 | R21: =ARKG!R4 -> https://finance.yahoo.com/quote/ABSI
A22: =TRIM(ARKG!O5) -> S.US.BEAM | B22: News | C22: =IFERROR(RTD("cqg.rtd", ,"ContractData",A22, "LongDescription",, "T")&" ("&RIGHT(A22,LEN(A22)-5)&")","") -> Beam Therapeutics Inc. (BEAM) | H22: =IFERROR(RTD("cqg.rtd", ,"ContractData",A22, "LastTradeToday",, "T"),"") -> 21.4 | I22: =IFERROR(RTD("cqg.rtd", ,"ContractData",A22, "NetLastTradeToday",, "T"),"") -> 0.8 | J22: =IFERROR(RTD("cqg.rtd", ,"ContractData",A22, "PerCentNetLastTrade",, "T")/100,"") -> 0.03883495146 | K22: =IFERROR(I22/RTD("cqg.rtd",,"StudyData",A22, "ATR", "MaType=Sim,Period=10", "ATR","D","-1","ALL",,,"FALSE","T")/100,"") -> 0.005124919923 | L22: =IFERROR(RTD("cqg.rtd", ,"ContractData",A22, "OPen",, "T"),"") -> 20.88 | M22: =IFERROR(RTD("cqg.rtd", ,"ContractData", A22, "HIgh",, "T"),"") -> 21.49 | N22: =IFERROR(RTD("cqg.rtd", ,"ContractData",A22, "LOw",, "T"),"") -> 20.77 | O22: =IFERROR(RTD("cqg.rtd", ,"ContractData",A22, "T_CVol",, "T"),"") -> 61049 | Q22: =IFERROR(O22/RTD("cqg.rtd",,"StudyData",A22, "MA", "InputChoice=Vol,MAType=Sim,Period=21", "MA","D","-1","all",,,,"T"),"") -> 0.02098139962 | R22: =ARKG!R5 -> https://finance.yahoo.com/quote/BEAM
A23: =TRIM(ARKG!O6) -> S.US.CRSP | B23: News | C23: =IFERROR(RTD("cqg.rtd", ,"ContractData",A23, "LongDescription",, "T")&" ("&RIGHT(A23,LEN(A23)-5)&")","") -> CRISPR Therapeutics AG (CRSP) | H23: =IFERROR(RTD("cqg.rtd", ,"ContractData",A23, "LastTradeToday",, "T"),"") -> 58.43 | I23: =IFERROR(RTD("cqg.rtd", ,"ContractData",A23, "NetLastTradeToday",, "T"),"") -> 2.17 | J23: =IFERROR(RTD("cqg.rtd", ,"ContractData",A23, "PerCentNetLastTrade",, "T")/100,"") -> 0.03857092073 | K23: =IFERROR(I23/RTD("cqg.rtd",,"StudyData",A23, "ATR", "MaType=Sim,Period=10", "ATR","D","-1","ALL",,,"FALSE","T")/100,"") -> 0.009430682312 | L23: =IFERROR(RTD("cqg.rtd", ,"ContractData",A23, "OPen",, "T"),"") -> 57.25 | M23: =IFERROR(RTD("cqg.rtd", ,"ContractData", A23, "HIgh",, "T"),"") -> 58.55 | N23: =IFERROR(RTD("cqg.rtd", ,"ContractData",A23, "LOw",, "T"),"") -> 57.25 | O23: =IFERROR(RTD("cqg.rtd", ,"ContractData",A23, "T_CVol",, "T"),"") -> 191611 | Q23: =IFERROR(O23/RTD("cqg.rtd",,"StudyData",A23, "MA", "InputChoice=Vol,MAType=Sim,Period=21", "MA","D","-1","all",,,,"T"),"") -> 0.09535429709 | R23: =ARKG!R6 -> https://finance.yahoo.com/quote/CRSP
A24: =TRIM(ARKG!O7) -> S.US.TXG | B24: News | C24: =IFERROR(RTD("cqg.rtd", ,"ContractData",A24, "LongDescription",, "T")&" ("&RIGHT(A24,LEN(A24)-5)&")","") -> 10x Genomics, Inc. Class A (TXG) | H24: =IFERROR(RTD("cqg.rtd", ,"ContractData",A24, "LastTradeToday",, "T"),"") -> 13 | I24: =IFERROR(RTD("cqg.rtd", ,"ContractData",A24, "NetLastTradeToday",, "T"),"") -> 0.36 | J24: =IFERROR(RTD("cqg.rtd", ,"ContractData",A24, "PerCentNetLastTrade",, "T")/100,"") -> 0.02848101266 | K24: =IFERROR(I24/RTD("cqg.rtd",,"StudyData",A24, "ATR", "MaType=Sim,Period=10", "ATR","D","-1","ALL",,,"FALSE","T")/100,"") -> 0.005678233438 | L24: =IFERROR(RTD("cqg.rtd", ,"ContractData",A24, "OPen",, "T"),"") -> 12.85 | M24: =IFERROR(RTD("cqg.rtd", ,"ContractData", A24, "HIgh",, "T"),"") -> 13 | N24: =IFERROR(RTD("cqg.rtd", ,"ContractData",A24, "LOw",, "T"),"") -> 12.79 | O24: =IFERROR(RTD("cqg.rtd", ,"ContractData",A24, "T_CVol",, "T"),"") -> 64148 | Q24: =IFERROR(O24/RTD("cqg.rtd",,"StudyData",A24, "MA", "InputChoice=Vol,MAType=Sim,Period=21", "MA","D","-1","all",,,,"T"),"") -> 0.02639722777 | R24: =ARKG!R7 -> https://finance.yahoo.com/quote/TXG
A25: =TRIM(ARKG!O8) -> S.US.PACB | B25: News | C25: =IFERROR(RTD("cqg.rtd", ,"ContractData",A25, "LongDescription",, "T")&" ("&RIGHT(A25,LEN(A25)-5)&")","") -> Pacific Biosciences of California, Inc. (PACB) | H25: =IFERROR(RTD("cqg.rtd", ,"ContractData",A25, "LastTradeToday",, "T"),"") -> 1.2 | I25: =IFERROR(RTD("cqg.rtd", ,"ContractData",A25, "NetLastTradeToday",, "T"),"") -> 0.03 | J25: =IFERROR(RTD("cqg.rtd", ,"ContractData",A25, "PerCentNetLastTrade",, "T")/100,"") -> 0.02564102564 | K25: =IFERROR(I25/RTD("cqg.rtd",,"StudyData",A25, "ATR", "MaType=Sim,Period=10", "ATR","D","-1","ALL",,,"FALSE","T")/100,"") -> 0.004347826087 | L25: =IFERROR(RTD("cqg.rtd", ,"ContractData",A25, "OPen",, "T"),"") -> 1.2 | M25: =IFERROR(RTD("cqg.rtd", ,"ContractData", A25, "HIgh",, "T"),"") -> 1.2 | N25: =IFERROR(RTD("cqg.rtd", ,"ContractData",A25, "LOw",, "T"),"") -> 1.19 | O25: =IFERROR(RTD("cqg.rtd", ,"ContractData",A25, "T_CVol",, "T"),"") -> 325397 | Q25: =IFERROR(O25/RTD("cqg.rtd",,"StudyData",A25, "MA", "InputChoice=Vol,MAType=Sim,Period=21", "MA","D","-1","all",,,,"T"),"") -> 0.06115980115 | R25: =ARKG!R8 -> https://finance.yahoo.com/quote/PACB
A26: =TRIM(ARKG!O9) -> S.US.QSI | B26: News | C26: =IFERROR(RTD("cqg.rtd", ,"ContractData",A26, "LongDescription",, "T")&" ("&RIGHT(A26,LEN(A26)-5)&")","") -> Quantum-Si Incorporated Class A (QSI) | H26: =IFERROR(RTD("cqg.rtd", ,"ContractData",A26, "LastTradeToday",, "T"),"") -> 1.21 | I26: =IFERROR(RTD("cqg.rtd", ,"ContractData",A26, "NetLastTradeToday",, "T"),"") -> 0.03 | J26: =IFERROR(RTD("cqg.rtd", ,"ContractData",A26, "PerCentNetLastTrade",, "T")/100,"") -> 0.02542372881 | K26: =IFERROR(I26/RTD("cqg.rtd",,"StudyData",A26, "ATR", "MaType=Sim,Period=10", "ATR","D","-1","ALL",,,"FALSE","T")/100,"") -> 0.004109589041 | L26: =IFERROR(RTD("cqg.rtd", ,"ContractData",A26, "OPen",, "T"),"") -> 1.2 | M26: =IFERROR(RTD("cqg.rtd", ,"ContractData", A26, "HIgh",, "T"),"") -> 1.23 | N26: =IFERROR(RTD("cqg.rtd", ,"ContractData",A26, "LOw",, "T"),"") -> 1.2 | O26: =IFERROR(RTD("cqg.rtd", ,"ContractData",A26, "T_CVol",, "T"),"") -> 917764 | Q26: =IFERROR(O26/RTD("cqg.rtd",,"StudyData",A26, "MA", "InputChoice=Vol,MAType=Sim,Period=21", "MA","D","-1","all",,,,"T"),"") -> 0.1645559165 | R26: =ARKG!R9 -> https://finance.yahoo.com/quote/QSI
A27: =TRIM(ARKG!O10) -> S.US.BFLY | B27: News | C27: =IFERROR(RTD("cqg.rtd", ,"ContractData",A27, "LongDescription",, "T")&" ("&RIGHT(A27,LEN(A27)-5)&")","") -> Butterfly Network, Inc. (BFLY) | H27: =IFERROR(RTD("cqg.rtd", ,"ContractData",A27, "LastTradeToday",, "T"),"") -> 1.6 | I27: =IFERROR(RTD("cqg.rtd", ,"ContractData",A27, "NetLastTradeToday",, "T"),"") -> 0.03 | J27: =IFERROR(RTD("cqg.rtd", ,"ContractData",A27, "PerCentNetLastTrade",, "T")/100,"") -> 0.01910828025 | K27: =IFERROR(I27/RTD("cqg.rtd",,"StudyData",A27, "ATR", "MaType=Sim,Period=10", "ATR","D","-1","ALL",,,"FALSE","T")/100,"") -> 0.004 | L27: =IFERROR(RTD("cqg.rtd", ,"ContractData",A27, "OPen",, "T"),"") -> 1.58 | M27: =IFERROR(RTD("cqg.rtd", ,"ContractData", A27, "HIgh",, "T"),"") -> 1.62 | N27: =IFERROR(RTD("cqg.rtd", ,"ContractData",A27, "LOw",, "T"),"") -> 1.57 | O27: =IFERROR(RTD("cqg.rtd", ,"ContractData",A27, "T_CVol",, "T"),"") -> 322248 | Q27: =IFERROR(O27/RTD("cqg.rtd",,"StudyData",A27, "MA", "InputChoice=Vol,MAType=Sim,Period=21", "MA","D","-1","all",,,,"T"),"") -> 0.1110816869 | R27: =ARKG!R10 -> https://finance.yahoo.com/quote/BFLY | S27: Bottom 15 Negative Performing Companies
A28: =TRIM(ARKG!O11) -> S.US.CERS | B28: News | C28: =IFERROR(RTD("cqg.rtd", ,"ContractData",A28, "LongDescription",, "T")&" ("&RIGHT(A28,LEN(A28)-5)&")","") -> Cerus Corp (CERS) | H28: =IFERROR(RTD("cqg.rtd", ,"ContractData",A28, "LastTradeToday",, "T"),"") -> 1.25 | I28: =IFERROR(RTD("cqg.rtd", ,"ContractData",A28, "NetLastTradeToday",, "T"),"") -> 0.02 | J28: =IFERROR(RTD("cqg.rtd", ,"ContractData",A28, "PerCentNetLastTrade",, "T")/100,"") -> 0.0162601626 | K28: =IFERROR(I28/RTD("cqg.rtd",,"StudyData",A28, "ATR", "MaType=Sim,Period=10", "ATR","D","-1","ALL",,,"FALSE","T")/100,"") -> 0.00303030303 | L28: =IFERROR(RTD("cqg.rtd", ,"ContractData",A28, "OPen",, "T"),"") -> 1.24 | M28: =IFERROR(RTD("cqg.rtd", ,"ContractData", A28, "HIgh",, "T"),"") -> 1.25 | N28: =IFERROR(RTD("cqg.rtd", ,"ContractData",A28, "LOw",, "T"),"") -> 1.24 | O28: =IFERROR(RTD("cqg.rtd", ,"ContractData",A28, "T_CVol",, "T"),"") -> 11963 | Q28: =IFERROR(O28/RTD("cqg.rtd",,"StudyData",A28, "MA", "InputChoice=Vol,MAType=Sim,Period=21", "MA","D","-1","all",,,,"T"),"") -> 0.009869126232 | R28: =ARKG!R11 -> https://finance.yahoo.com/quote/CERS
A29: =TRIM(ARKG!O12) -> S.US.TWST | B29: News | C29: =IFERROR(RTD("cqg.rtd", ,"ContractData",A29, "LongDescription",, "T")&" ("&RIGHT(A29,LEN(A29)-5)&")","") -> Twist Bioscience Corporation (TWST) | H29: =IFERROR(RTD("cqg.rtd", ,"ContractData",A29, "LastTradeToday",, "T"),"") -> 25.7 | I29: =IFERROR(RTD("cqg.rtd", ,"ContractData",A29, "NetLastTradeToday",, "T"),"") -> 0.39 | J29: =IFERROR(RTD("cqg.rtd", ,"ContractData",A29, "PerCentNetLastTrade",, "T")/100,"") -> 0.01540892928 | K29: =IFERROR(I29/RTD("cqg.rtd",,"StudyData",A29, "ATR", "MaType=Sim,Period=10", "ATR","D","-1","ALL",,,"FALSE","T")/100,"") -> 0.002888888889 | L29: =IFERROR(RTD("cqg.rtd", ,"ContractData",A29, "OPen",, "T"),"") -> 25.55 | M29: =IFERROR(RTD("cqg.rtd", ,"ContractData", A29, "HIgh",, "T"),"") -> 25.78 | N29: =IFERROR(RTD("cqg.rtd", ,"ContractData",A29, "LOw",, "T"),"") -> 25.5 | O29: =IFERROR(RTD("cqg.rtd", ,"ContractData",A29, "T_CVol",, "T"),"") -> 51935 | Q29: =IFERROR(O29/RTD("cqg.rtd",,"StudyData",A29, "MA", "InputChoice=Vol,MAType=Sim,Period=21", "MA","D","-1","all",,,,"T"),"") -> 0.03533298341 | R29: =ARKG!R12 -> https://finance.yahoo.com/quote/TWST
A30: =TRIM(ARKG!O13) -> S.US.MASS | B30: News | C30: =IFERROR(RTD("cqg.rtd", ,"ContractData",A30, "LongDescription",, "T")&" ("&RIGHT(A30,LEN(A30)-5)&")","") -> 908 Devices Inc. (MASS) | H30: =IFERROR(RTD("cqg.rtd", ,"ContractData",A30, "LastTradeToday",, "T"),"") -> 5.68 | I30: =IFERROR(RTD("cqg.rtd", ,"ContractData",A30, "NetLastTradeToday",, "T"),"") -> 0.08 | J30: =IFERROR(RTD("cqg.rtd", ,"ContractData",A30, "PerCentNetLastTrade",, "T")/100,"") -> 0.01428571429 | K30: =IFERROR(I30/RTD("cqg.rtd",,"StudyData",A30, "ATR", "MaType=Sim,Period=10", "ATR","D","-1","ALL",,,"FALSE","T")/100,"") -> 0.002739726027 | L30: =IFERROR(RTD("cqg.rtd", ,"ContractData",A30, "OPen",, "T"),"") -> 5.63 | M30: =IFERROR(RTD("cqg.rtd", ,"ContractData", A30, "HIgh",, "T"),"") -> 5.74 | N30: =IFERROR(RTD("cqg.rtd", ,"ContractData",A30, "LOw",, "T"),"") -> 5.63 | O30: =IFERROR(RTD("cqg.rtd", ,"ContractData",A30, "T_CVol",, "T"),"") -> 6659 | Q30: =IFERROR(O30/RTD("cqg.rtd",,"StudyData",A30, "MA", "InputChoice=Vol,MAType=Sim,Period=21", "MA","D","-1","all",,,,"T"),"") -> 0.02449087033 | R30: =ARKG!R13 -> https://finance.yahoo.com/quote/MASS
A31: =TRIM(ARKG!O14) -> S.US.VEEV | B31: News | C31: =IFERROR(RTD("cqg.rtd", ,"ContractData",A31, "LongDescription",, "T")&" ("&RIGHT(A31,LEN(A31)-5)&")","") -> VEEVA Systems, Inc. (VEEV) | H31: =IFERROR(RTD("cqg.rtd", ,"ContractData",A31, "LastTradeToday",, "T"),"") -> 278.91 | I31: =IFERROR(RTD("cqg.rtd", ,"ContractData",A31, "NetLastTradeToday",, "T"),"") -> 2.48 | J31: =IFERROR(RTD("cqg.rtd", ,"ContractData",A31, "PerCentNetLastTrade",, "T")/100,"") -> 0.008971529863 | K31: =IFERROR(I31/RTD("cqg.rtd",,"StudyData",A31, "ATR", "MaType=Sim,Period=10", "ATR","D","-1","ALL",,,"FALSE","T")/100,"") -> 0.003418332185 | L31: =IFERROR(RTD("cqg.rtd", ,"ContractData",A31, "OPen",, "T"),"") -> 276.94 | M31: =IFERROR(RTD("cqg.rtd", ,"ContractData", A31, "HIgh",, "T"),"") -> 279.05 | N31: =IFERROR(RTD("cqg.rtd", ,"ContractData",A31, "LOw",, "T"),"") -> 276 | O31: =IFERROR(RTD("cqg.rtd", ,"ContractData",A31, "T_CVol",, "T"),"") -> 63528 | Q31: =IFERROR(O31/RTD("cqg.rtd",,"StudyData",A31, "MA", "InputChoice=Vol,MAType=Sim,Period=21", "MA","D","-1","all",,,,"T"),"") -> 0.04275302336 | R31: =ARKG!R14 -> https://finance.yahoo.com/quote/VEEV
A32: =TRIM(ARKG!O15) -> S.US.VCYT | B32: News | C32: =IFERROR(RTD("cqg.rtd", ,"ContractData",A32, "LongDescription",, "T")&" ("&RIGHT(A32,LEN(A32)-5)&")","") -> Veracyte, Inc. (VCYT) | H32: =IFERROR(RTD("cqg.rtd", ,"ContractData",A32, "LastTradeToday",, "T"),"") -> 31.13 | I32: =IFERROR(RTD("cqg.rtd", ,"ContractData",A32, "NetLastTradeToday",, "T"),"") -> 0.25 | J32: =IFERROR(RTD("cqg.rtd", ,"ContractData",A32, "PerCentNetLastTrade",, "T")/100,"") -> 0.008095854922 | K32: =IFERROR(I32/RTD("cqg.rtd",,"StudyData",A32, "ATR", "MaType=Sim,Period=10", "ATR","D","-1","ALL",,,"FALSE","T")/100,"") -> 0.002131287298 | L32: =IFERROR(RTD("cqg.rtd", ,"ContractData",A32, "OPen",, "T"),"") -> 31.02 | M32: =IFERROR(RTD("cqg.rtd", ,"ContractData", A32, "HIgh",, "T"),"") -> 31.4 | N32: =IFERROR(RTD("cqg.rtd", ,"ContractData",A32, "LOw",, "T"),"") -> 31.02 | O32: =IFERROR(RTD("cqg.rtd", ,"ContractData",A32, "T_CVol",, "T"),"") -> 8647 | Q32: =IFERROR(O32/RTD("cqg.rtd",,"StudyData",A32, "MA", "InputChoice=Vol,MAType=Sim,Period=21", "MA","D","-1","all",,,,"T"),"") -> 0.008656748736 | R32: =ARKG!R15 -> https://finance.yahoo.com/quote/VCYT
C33: Bottom 15 Description | H33: Last | I33: NC | J33: %NC | K33: NC/ATR | L33: Open | M33: High | N33: Low | O33: Volume | Q33: Ratio
A34: =TRIM(ARKG!AC1) -> S.US.GH | B34: News | C34: =IFERROR(RTD("cqg.rtd", ,"ContractData",A34, "LongDescription",, "T")&" ("&RIGHT(A34,LEN(A34)-5)&")","") -> Guardant Health, Inc. (GH) | H34: =IFERROR(RTD("cqg.rtd", ,"ContractData",A34, "LastTradeToday",, "T"),"") -> 54.59 | I34: =IFERROR(RTD("cqg.rtd", ,"ContractData",A34, "NetLastTradeToday",, "T"),"") -> -0.3 | J34: =IFERROR(RTD("cqg.rtd", ,"ContractData",A34, "PerCentNetLastTrade",, "T")/100,"") -> -0.005465476407 | K34: =IFERROR(I34/RTD("cqg.rtd",,"StudyData",A34, "ATR", "MaType=Sim,Period=10", "ATR","D","-1","ALL",,,"FALSE","T")/100,"") -> -0.0009584664537 | L34: =IFERROR(RTD("cqg.rtd", ,"ContractData",A34, "OPen",, "T"),"") -> 54.55 | M34: =IFERROR(RTD("cqg.rtd", ,"ContractData", A34, "HIgh",, "T"),"") -> 54.7 | N34: =IFERROR(RTD("cqg.rtd", ,"ContractData",A34, "LOw",, "T"),"") -> 54.17 | O34: =IFERROR(RTD("cqg.rtd", ,"ContractData",A34, "T_CVol",, "T"),"") -> 54782 | Q34: =IFERROR(O34/RTD("cqg.rtd",,"StudyData",A34, "MA", "InputChoice=Vol,MAType=Sim,Period=21", "MA","D","-1","all",,,,"T"),"") -> 0.02252978128 | R34: =ARKG!AH1 -> https://finance.yahoo.com/quote/GH
A35: =TRIM(ARKG!AC2) -> S.US.IONS | B35: News | C35: =IFERROR(RTD("cqg.rtd", ,"ContractData",A35, "LongDescription",, "T")&" ("&RIGHT(A35,LEN(A35)-5)&")","") -> Ionis Pharmaceuticals, Inc. (IONS) | H35: =IFERROR(RTD("cqg.rtd", ,"ContractData",A35, "LastTradeToday",, "T"),"") -> 62.87 | I35: =IFERROR(RTD("cqg.rtd", ,"ContractData",A35, "NetLastTradeToday",, "T"),"") -> -0.29 | J35: =IFERROR(RTD("cqg.rtd", ,"ContractData",A35, "PerCentNetLastTrade",, "T")/100,"") -> -0.004591513616 | K35: =IFERROR(I35/RTD("cqg.rtd",,"StudyData",A35, "ATR", "MaType=Sim,Period=10", "ATR","D","-1","ALL",,,"FALSE","T")/100,"") -> -0.0008139208532 | L35: =IFERROR(RTD("cqg.rtd", ,"ContractData",A35, "OPen",, "T"),"") -> 62.94 | M35: =IFERROR(RTD("cqg.rtd", ,"ContractData", A35, "HIgh",, "T"),"") -> 63.42 | N35: =IFERROR(RTD("cqg.rtd", ,"ContractData",A35, "LOw",, "T"),"") -> 62.52 | O35: =IFERROR(RTD("cqg.rtd", ,"ContractData",A35, "T_CVol",, "T"),"") -> 35194 | Q35: =IFERROR(O35/RTD("cqg.rtd",,"StudyData",A35, "MA", "InputChoice=Vol,MAType=Sim,Period=21", "MA","D","-1","all",,,,"T"),"") -> 0.01093135621 | R35: =ARKG!AH2 -> https://finance.yahoo.com/quote/IONS
A36: =TRIM(ARKG!AC3) -> S.US.CMPS | B36: News | C36: =IFERROR(RTD("cqg.rtd", ,"ContractData",A36, "LongDescription",, "T")&" ("&RIGHT(A36,LEN(A36)-5)&")","") -> COMPASS Pathways Plc (CMPS) | H36: =IFERROR(RTD("cqg.rtd", ,"ContractData",A36, "LastTradeToday",, "T"),"") -> 5.19 | I36: =IFERROR(RTD("cqg.rtd", ,"ContractData",A36, "NetLastTradeToday",, "T"),"") -> -0.01 | J36: =IFERROR(RTD("cqg.rtd", ,"ContractData",A36, "PerCentNetLastTrade",, "T")/100,"") -> -0.001923076923 | K36: =IFERROR(I36/RTD("cqg.rtd",,"StudyData",A36, "ATR", "MaType=Sim,Period=10", "ATR","D","-1","ALL",,,"FALSE","T")/100,"") -> -0.0003115264798 | L36: =IFERROR(RTD("cqg.rtd", ,"ContractData",A36, "OPen",, "T"),"") -> 5.22 | M36: =IFERROR(RTD("cqg.rtd", ,"ContractData", A36, "HIgh",, "T"),"") -> 5.28 | N36: =IFERROR(RTD("cqg.rtd", ,"ContractData",A36, "LOw",, "T"),"") -> 5.18 | O36: =IFERROR(RTD("cqg.rtd", ,"ContractData",A36, "T_CVol",, "T"),"") -> 39816 | Q36: =IFERROR(O36/RTD("cqg.rtd",,"StudyData",A36, "MA", "InputChoice=Vol,MAType=Sim,Period=21", "MA","D","-1","all",,,,"T"),"") -> 0.02241988073 | R36: =ARKG!AH3 -> https://finance.yahoo.com/quote/CMPS
A37: =TRIM(ARKG!AC4) -> S.US.CDNA | B37: News | C37: =IFERROR(RTD("cqg.rtd", ,"ContractData",A37, "LongDescription",, "T")&" ("&RIGHT(A37,LEN(A37)-5)&")","") -> CareDx, Inc. (CDNA) | H37: =IFERROR(RTD("cqg.rtd", ,"ContractData",A37, "LastTradeToday",, "T"),"") -> 13.52 | I37: =IFERROR(RTD("cqg.rtd", ,"ContractData",A37, "NetLastTradeToday",, "T"),"") -> -0.01 | J37: =IFERROR(RTD("cqg.rtd", ,"ContractData",A37, "PerCentNetLastTrade",, "T")/100,"") -> -0.0007390983001 | K37: =IFERROR(I37/RTD("cqg.rtd",,"StudyData",A37, "ATR", "MaType=Sim,Period=10", "ATR","D","-1","ALL",,,"FALSE","T")/100,"") -> -0.0001408450704 | L37: =IFERROR(RTD("cqg.rtd", ,"ContractData",A37, "OPen",, "T"),"") -> 13.55 | M37: =IFERROR(RTD("cqg.rtd", ,"ContractData", A37, "HIgh",, "T"),"") -> 13.58 | N37: =IFERROR(RTD("cqg.rtd", ,"ContractData",A37, "LOw",, "T"),"") -> 13.45 | O37: =IFERROR(RTD("cqg.rtd", ,"ContractData",A37, "T_CVol",, "T"),"") -> 14277 | Q37: =IFERROR(O37/RTD("cqg.rtd",,"StudyData",A37, "MA", "InputChoice=Vol,MAType=Sim,Period=21", "MA","D","-1","all",,,,"T"),"") -> 0.009879508139 | R37: =ARKG!AH4 -> https://finance.yahoo.com/quote/CDNA
A38: =TRIM(ARKG!AC5) -> S.US.NTRA | B38: News | C38: =IFERROR(RTD("cqg.rtd", ,"ContractData",A38, "LongDescription",, "T")&" ("&RIGHT(A38,LEN(A38)-5)&")","") -> Natera, Inc. (NTRA) | H38: =IFERROR(RTD("cqg.rtd", ,"ContractData",A38, "LastTradeToday",, "T"),"") -> 168.44 | I38: =IFERROR(RTD("cqg.rtd", ,"ContractData",A38, "NetLastTradeToday",, "T"),"") -> -0.07 | J38: =IFERROR(RTD("cqg.rtd", ,"ContractData",A38, "PerCentNetLastTrade",, "T")/100,"") -> -0.0004154056139 | K38: =IFERROR(I38/RTD("cqg.rtd",,"StudyData",A38, "ATR", "MaType=Sim,Period=10", "ATR","D","-1","ALL",,,"FALSE","T")/100,"") -> -0.0001326259947 | L38: =IFERROR(RTD("cqg.rtd", ,"ContractData",A38, "OPen",, "T"),"") -> 168.29 | M38: =IFERROR(RTD("cqg.rtd", ,"ContractData", A38, "HIgh",, "T"),"") -> 169 | N38: =IFERROR(RTD("cqg.rtd", ,"ContractData",A38, "LOw",, "T"),"") -> 167.5 | O38: =IFERROR(RTD("cqg.rtd", ,"ContractData",A38, "T_CVol",, "T"),"") -> 26093 | Q38: =IFERROR(O38/RTD("cqg.rtd",,"StudyData",A38, "MA", "InputChoice=Vol,MAType=Sim,Period=21", "MA","D","-1","all",,,,"T"),"") -> 0.02592410937 | R38: =ARKG!AH5 -> https://finance.yahoo.com/quote/NTRA
A39: =TRIM(ARKG!AC6) -> S.US.LAB | B39: News | C39: =IFERROR(RTD("cqg.rtd", ,"ContractData",A39, "LongDescription",, "T")&" ("&RIGHT(A39,LEN(A39)-5)&")","") -> Standard BioTools Inc. (LAB) | H39: =IFERROR(RTD("cqg.rtd", ,"ContractData",A39, "LastTradeToday",, "T"),"") -> 1.29 | I39: =IFERROR(RTD("cqg.rtd", ,"ContractData",A39, "NetLastTradeToday",, "T"),"") -> 0 | J39: =IFERROR(RTD("cqg.rtd", ,"ContractData",A39, "PerCentNetLastTrade",, "T")/100,"") -> 0 | K39: =IFERROR(I39/RTD("cqg.rtd",,"StudyData",A39, "ATR", "MaType=Sim,Period=10", "ATR","D","-1","ALL",,,"FALSE","T")/100,"") -> 0 | L39: =IFERROR(RTD("cqg.rtd", ,"ContractData",A39, "OPen",, "T"),"") -> 1.3 | M39: =IFERROR(RTD("cqg.rtd", ,"ContractData", A39, "HIgh",, "T"),"") -> 1.32 | N39: =IFERROR(RTD("cqg.rtd", ,"ContractData",A39, "LOw",, "T"),"") -> 1.29 | O39: =IFERROR(RTD("cqg.rtd", ,"ContractData",A39, "T_CVol",, "T"),"") -> 49076 | Q39: =IFERROR(O39/RTD("cqg.rtd",,"StudyData",A39, "MA", "InputChoice=Vol,MAType=Sim,Period=21", "MA","D","-1","all",,,,"T"),"") -> 0.04102799369 | R39: =ARKG!AH6 -> https://finance.yahoo.com/quote/LAB
A40: =TRIM(ARKG!AC7) -> S.US.WGS | B40: News | C40: =IFERROR(RTD("cqg.rtd", ,"ContractData",A40, "LongDescription",, "T")&" ("&RIGHT(A40,LEN(A40)-5)&")","") -> GeneDx Holdings Corp. (WGS) | H40: =IFERROR(RTD("cqg.rtd", ,"ContractData",A40, "LastTradeToday",, "T"),"") -> 124 | I40: =IFERROR(RTD("cqg.rtd", ,"ContractData",A40, "NetLastTradeToday",, "T"),"") -> 0.05 | J40: =IFERROR(RTD("cqg.rtd", ,"ContractData",A40, "PerCentNetLastTrade",, "T")/100,"") -> 0.0004033884631 | K40: =IFERROR(I40/RTD("cqg.rtd",,"StudyData",A40, "ATR", "MaType=Sim,Period=10", "ATR","D","-1","ALL",,,"FALSE","T")/100,"") -> 8.838607036e-05 | L40: =IFERROR(RTD("cqg.rtd", ,"ContractData",A40, "OPen",, "T"),"") -> 124.91 | M40: =IFERROR(RTD("cqg.rtd", ,"ContractData", A40, "HIgh",, "T"),"") -> 124.91 | N40: =IFERROR(RTD("cqg.rtd", ,"ContractData",A40, "LOw",, "T"),"") -> 124 | O40: =IFERROR(RTD("cqg.rtd", ,"ContractData",A40, "T_CVol",, "T"),"") -> 3490 | Q40: =IFERROR(O40/RTD("cqg.rtd",,"StudyData",A40, "MA", "InputChoice=Vol,MAType=Sim,Period=21", "MA","D","-1","all",,,,"T"),"") -> 0.005660893698 | R40: =ARKG!AH7 -> https://finance.yahoo.com/quote/WGS
A41: =TRIM(ARKG!AC8) -> S.US.AMGN | B41: News | C41: =IFERROR(RTD("cqg.rtd", ,"ContractData",A41, "LongDescription",, "T")&" ("&RIGHT(A41,LEN(A41)-5)&")","") -> Amgen Inc (AMGN) | H41: =IFERROR(RTD("cqg.rtd", ,"ContractData",A41, "LastTradeToday",, "T"),"") -> 276.64 | I41: =IFERROR(RTD("cqg.rtd", ,"ContractData",A41, "NetLastTradeToday",, "T"),"") -> 0.25 | J41: =IFERROR(RTD("cqg.rtd", ,"ContractData",A41, "PerCentNetLastTrade",, "T")/100,"") -> 0.0009045189768 | K41: =IFERROR(I41/RTD("cqg.rtd",,"StudyData",A41, "ATR", "MaType=Sim,Period=10", "ATR","D","-1","ALL",,,"FALSE","T")/100,"") -> 0.0004758279406 | L41: =IFERROR(RTD("cqg.rtd", ,"ContractData",A41, "OPen",, "T"),"") -> 276.07 | M41: =IFERROR(RTD("cqg.rtd", ,"ContractData", A41, "HIgh",, "T"),"") -> 277.24 | N41: =IFERROR(RTD("cqg.rtd", ,"ContractData",A41, "LOw",, "T"),"") -> 275.8 | O41: =IFERROR(RTD("cqg.rtd", ,"ContractData",A41, "T_CVol",, "T"),"") -> 62593 | Q41: =IFERROR(O41/RTD("cqg.rtd",,"StudyData",A41, "MA", "InputChoice=Vol,MAType=Sim,Period=21", "MA","D","-1","all",,,,"T"),"") -> 0.03192046064 | R41: =ARKG!AH8 -> https://finance.yahoo.com/quote/AMGN
A42: =TRIM(ARKG!AC9) -> S.US.PSNL | B42: News | C42: =IFERROR(RTD("cqg.rtd", ,"ContractData",A42, "LongDescription",, "T")&" ("&RIGHT(A42,LEN(A42)-5)&")","") -> Personalis, Inc. (PSNL) | H42: =IFERROR(RTD("cqg.rtd", ,"ContractData",A42, "LastTradeToday",, "T"),"") -> 5.86 | I42: =IFERROR(RTD("cqg.rtd", ,"ContractData",A42, "NetLastTradeToday",, "T"),"") -> 0.01 | J42: =IFERROR(RTD("cqg.rtd", ,"ContractData",A42, "PerCentNetLastTrade",, "T")/100,"") -> 0.001709401709 | K42: =IFERROR(I42/RTD("cqg.rtd",,"StudyData",A42, "ATR", "MaType=Sim,Period=10", "ATR","D","-1","ALL",,,"FALSE","T")/100,"") -> 0.0003105590062 | L42: =IFERROR(RTD("cqg.rtd", ,"ContractData",A42, "OPen",, "T"),"") -> 5.88 | M42: =IFERROR(RTD("cqg.rtd", ,"ContractData", A42, "HIgh",, "T"),"") -> 5.92 | N42: =IFERROR(RTD("cqg.rtd", ,"ContractData",A42, "LOw",, "T"),"") -> 5.86 | O42: =IFERROR(RTD("cqg.rtd", ,"ContractData",A42, "T_CVol",, "T"),"") -> 20151 | Q42: =IFERROR(O42/RTD("cqg.rtd",,"StudyData",A42, "MA", "InputChoice=Vol,MAType=Sim,Period=21", "MA","D","-1","all",,,,"T"),"") -> 0.02298401144 | R42: =ARKG!AH9 -> https://finance.yahoo.com/quote/PSNL
A43: =TRIM(ARKG!AC10) -> S.US.INCY | B43: News | C43: =IFERROR(RTD("cqg.rtd", ,"ContractData",A43, "LongDescription",, "T")&" ("&RIGHT(A43,LEN(A43)-5)&")","") -> Incyte Corporation (INCY) | H43: =IFERROR(RTD("cqg.rtd", ,"ContractData",A43, "LastTradeToday",, "T"),"") -> 83.25 | I43: =IFERROR(RTD("cqg.rtd", ,"ContractData",A43, "NetLastTradeToday",, "T"),"") -> 0.15 | J43: =IFERROR(RTD("cqg.rtd", ,"ContractData",A43, "PerCentNetLastTrade",, "T")/100,"") -> 0.001805054152 | K43: =IFERROR(I43/RTD("cqg.rtd",,"StudyData",A43, "ATR", "MaType=Sim,Period=10", "ATR","D","-1","ALL",,,"FALSE","T")/100,"") -> 0.000703894885 | L43: =IFERROR(RTD("cqg.rtd", ,"ContractData",A43, "OPen",, "T"),"") -> 82.81 | M43: =IFERROR(RTD("cqg.rtd", ,"ContractData", A43, "HIgh",, "T"),"") -> 83.35 | N43: =IFERROR(RTD("cqg.rtd", ,"ContractData",A43, "LOw",, "T"),"") -> 82.81 | O43: =IFERROR(RTD("cqg.rtd", ,"ContractData",A43, "T_CVol",, "T"),"") -> 27272 | Q43: =IFERROR(O43/RTD("cqg.rtd",,"StudyData",A43, "MA", "InputChoice=Vol,MAType=Sim,Period=21", "MA","D","-1","all",,,,"T"),"") -> 0.01613530541 | R43: =ARKG!AH10 -> https://finance.yahoo.com/quote/INCY
A44: =TRIM(ARKG!AC11) -> S.US.EXAS | B44: News | C44: =IFERROR(RTD("cqg.rtd", ,"ContractData",A44, "LongDescription",, "T")&" ("&RIGHT(A44,LEN(A44)-5)&")","") -> EXACT Sciences Corp (EXAS) | H44: =IFERROR(RTD("cqg.rtd", ,"ContractData",A44, "LastTradeToday",, "T"),"") -> 54.06 | I44: =IFERROR(RTD("cqg.rtd", ,"ContractData",A44, "NetLastTradeToday",, "T"),"") -> 0.12 | J44: =IFERROR(RTD("cqg.rtd", ,"ContractData",A44, "PerCentNetLastTrade",, "T")/100,"") -> 0.002224694105 | K44: =IFERROR(I44/RTD("cqg.rtd",,"StudyData",A44, "ATR", "MaType=Sim,Period=10", "ATR","D","-1","ALL",,,"FALSE","T")/100,"") -> 0.0005946481665 | L44: =IFERROR(RTD("cqg.rtd", ,"ContractData",A44, "OPen",, "T"),"") -> 53.94 | M44: =IFERROR(RTD("cqg.rtd", ,"ContractData", A44, "HIgh",, "T"),"") -> 54.17 | N44: =IFERROR(RTD("cqg.rtd", ,"ContractData",A44, "LOw",, "T"),"") -> 53.88 | O44: =IFERROR(RTD("cqg.rtd", ,"ContractData",A44, "T_CVol",, "T"),"") -> 39493 | Q44: =IFERROR(O44/RTD("cqg.rtd",,"StudyData",A44, "MA", "InputChoice=Vol,MAType=Sim,Period=21", "MA","D","-1","all",,,,"T"),"") -> 0.01312806279 | R44: =ARKG!AH11 -> https://finance.yahoo.com/quote/EXAS
A45: =TRIM(ARKG!AC12) -> S.US.ATAI | B45: News | C45: =IFERROR(RTD("cqg.rtd", ,"ContractData",A45, "LongDescription",, "T")&" ("&RIGHT(A45,LEN(A45)-5)&")","") -> ATAI Life Sciences N.V. (ATAI) | H45: =IFERROR(RTD("cqg.rtd", ,"ContractData",A45, "LastTradeToday",, "T"),"") -> 4.65 | I45: =IFERROR(RTD("cqg.rtd", ,"ContractData",A45, "NetLastTradeToday",, "T"),"") -> 0.02 | J45: =IFERROR(RTD("cqg.rtd", ,"ContractData",A45, "PerCentNetLastTrade",, "T")/100,"") -> 0.004319654428 | K45: =IFERROR(I45/RTD("cqg.rtd",,"StudyData",A45, "ATR", "MaType=Sim,Period=10", "ATR","D","-1","ALL",,,"FALSE","T")/100,"") -> 0.0006535947712 | L45: =IFERROR(RTD("cqg.rtd", ,"ContractData",A45, "OPen",, "T"),"") -> 4.67 | M45: =IFERROR(RTD("cqg.rtd", ,"ContractData", A45, "HIgh",, "T"),"") -> 4.72 | N45: =IFERROR(RTD("cqg.rtd", ,"ContractData",A45, "LOw",, "T"),"") -> 4.58 | O45: =IFERROR(RTD("cqg.rtd", ,"ContractData",A45, "T_CVol",, "T"),"") -> 219245 | Q45: =IFERROR(O45/RTD("cqg.rtd",,"StudyData",A45, "MA", "InputChoice=Vol,MAType=Sim,Period=21", "MA","D","-1","all",,,,"T"),"") -> 0.04304112425 | R45: =ARKG!AH12 -> https://finance.yahoo.com/quote/ATAI
A46: =TRIM(ARKG!AC13) -> S.US.ADPT | B46: News | C46: =IFERROR(RTD("cqg.rtd", ,"ContractData",A46, "LongDescription",, "T")&" ("&RIGHT(A46,LEN(A46)-5)&")","") -> Adaptive Biotechnologies Corporation (ADPT) | H46: =IFERROR(RTD("cqg.rtd", ,"ContractData",A46, "LastTradeToday",, "T"),"") -> 12.67 | I46: =IFERROR(RTD("cqg.rtd", ,"ContractData",A46, "NetLastTradeToday",, "T"),"") -> 0.06 | J46: =IFERROR(RTD("cqg.rtd", ,"ContractData",A46, "PerCentNetLastTrade",, "T")/100,"") -> 0.004758128469 | K46: =IFERROR(I46/RTD("cqg.rtd",,"StudyData",A46, "ATR", "MaType=Sim,Period=10", "ATR","D","-1","ALL",,,"FALSE","T")/100,"") -> 0.0009063444109 | L46: =IFERROR(RTD("cqg.rtd", ,"ContractData",A46, "OPen",, "T"),"") -> 12.62 | M46: =IFERROR(RTD("cqg.rtd", ,"ContractData", A46, "HIgh",, "T"),"") -> 12.67 | N46: =IFERROR(RTD("cqg.rtd", ,"ContractData",A46, "LOw",, "T"),"") -> 12.59 | O46: =IFERROR(RTD("cqg.rtd", ,"ContractData",A46, "T_CVol",, "T"),"") -> 28212 | Q46: =IFERROR(O46/RTD("cqg.rtd",,"StudyData",A46, "MA", "InputChoice=Vol,MAType=Sim,Period=21", "MA","D","-1","all",,,,"T"),"") -> 0.0154139544 | R46: =ARKG!AH13 -> https://finance.yahoo.com/quote/ADPT
A47: =TRIM(ARKG!AC14) -> S.US.ILMN | B47: News | C47: =IFERROR(RTD("cqg.rtd", ,"ContractData",A47, "LongDescription",, "T")&" ("&RIGHT(A47,LEN(A47)-5)&")","") -> Illumina Inc (ILMN) | H47: =IFERROR(RTD("cqg.rtd", ,"ContractData",A47, "LastTradeToday",, "T"),"") -> 95.68 | I47: =IFERROR(RTD("cqg.rtd", ,"ContractData",A47, "NetLastTradeToday",, "T"),"") -> 0.56 | J47: =IFERROR(RTD("cqg.rtd", ,"ContractData",A47, "PerCentNetLastTrade",, "T")/100,"") -> 0.005887300252 | K47: =IFERROR(I47/RTD("cqg.rtd",,"StudyData",A47, "ATR", "MaType=Sim,Period=10", "ATR","D","-1","ALL",,,"FALSE","T")/100,"") -> 0.00176489127 | L47: =IFERROR(RTD("cqg.rtd", ,"ContractData",A47, "OPen",, "T"),"") -> 95.31 | M47: =IFERROR(RTD("cqg.rtd", ,"ContractData", A47, "HIgh",, "T"),"") -> 95.97 | N47: =IFERROR(RTD("cqg.rtd", ,"ContractData",A47, "LOw",, "T"),"") -> 95.2 | O47: =IFERROR(RTD("cqg.rtd", ,"ContractData",A47, "T_CVol",, "T"),"") -> 25414 | Q47: =IFERROR(O47/RTD("cqg.rtd",,"StudyData",A47, "MA", "InputChoice=Vol,MAType=Sim,Period=21", "MA","D","-1","all",,,,"T"),"") -> 0.01915401813 | R47: =ARKG!AH14 -> https://finance.yahoo.com/quote/ILMN
A48: =TRIM(ARKG!AC15) -> S.US.SDGR | B48: News | C48: =IFERROR(RTD("cqg.rtd", ,"ContractData",A48, "LongDescription",, "T")&" ("&RIGHT(A48,LEN(A48)-5)&")","") -> Schrodinger, Inc. (SDGR) | H48: =IFERROR(RTD("cqg.rtd", ,"ContractData",A48, "LastTradeToday",, "T"),"") -> 18.68 | I48: =IFERROR(RTD("cqg.rtd", ,"ContractData",A48, "NetLastTradeToday",, "T"),"") -> 0.11 | J48: =IFERROR(RTD("cqg.rtd", ,"ContractData",A48, "PerCentNetLastTrade",, "T")/100,"") -> 0.005923532579 | K48: =IFERROR(I48/RTD("cqg.rtd",,"StudyData",A48, "ATR", "MaType=Sim,Period=10", "ATR","D","-1","ALL",,,"FALSE","T")/100,"") -> 0.001564722617 | L48: =IFERROR(RTD("cqg.rtd", ,"ContractData",A48, "OPen",, "T"),"") -> 18.66 | M48: =IFERROR(RTD("cqg.rtd", ,"ContractData", A48, "HIgh",, "T"),"") -> 18.73 | N48: =IFERROR(RTD("cqg.rtd", ,"ContractData",A48, "LOw",, "T"),"") -> 18.62 | O48: =IFERROR(RTD("cqg.rtd", ,"ContractData",A48, "T_CVol",, "T"),"") -> 18685 | Q48: =IFERROR(O48/RTD("cqg.rtd",,"StudyData",A48, "MA", "InputChoice=Vol,MAType=Sim,Period=21", "MA","D","-1","all",,,,"T"),"") -> 0.01596363375 | R48: =ARKG!AH15 -> https://finance.yahoo.com/quote/SDGR
C49: CQG Inc., Copyright © 2025 | G49: Designed by Thom Hartle | J49: From their website: "ARK Funds seek to offer access to disruptive innovation and transformational companies." | Z49: =Z52 -> 83% of the stocks in the ETF are higher today
Z51: =ARKG!B103 -> 0.8333333333 | AA51: of the stocks in the ETF are higher today
Z52: =TEXT(Display!Z51,"0%")&" "&Display!AA51 -> 83% of the stocks in the ETF are higher today

Sheet ARKG (hidden)
A1: =IF(Symbols!A1="","",Symbols!A1) -> S.US.TXG | B1: =IF(A1="","",IF(J1>0,1,0)) -> 1 | C1: =A1 -> S.US.TXG | D1: =IF(A1="","",RTD("cqg.rtd", ,"ContractData",C1, "LongDescription",, "T")) -> 10x Genomics, Inc. Class A | F1: =("$J$"&"1"&":$J$"&A103) -> $J$1:$J$36 | H1: =IF(A1="","",RTD("cqg.rtd", ,"ContractData",C1, "LastTradeToday",, "T")) -> 13 | I1: =IF(A1="","",RTD("cqg.rtd", ,"ContractData",C1, "NetLastTradeToday",, "T")) -> 0.36 | J1: =IF(A1="","",IFERROR(RTD("cqg.rtd", ,"ContractData",C1, "PerCentNetLastTrade",, "T")/100,"")) -> 0.02848101266 | K1: =IF(A1="","",RTD("cqg.rtd", ,"ContractData", C1, "T_CVol",, "T")) -> 64148 | L1: 1 | M1: =IFERROR(RANK($J1,INDIRECT(("$J$"&"1"&":$J$"&$A$103)))+COUNTIF($J$1:J1,J1)-1,"") -> 7 | N1: =C1 -> S.US.TXG | O1: =IFERROR(VLOOKUP($L1,$M$1:$N$101,2,FALSE),"") -> S.US.NTLA | P1: =RTD("cqg.rtd", ,"ContractData",O1, "LongDescription",, "T") -> Intellia Therapeutics, Inc. | Q1: =IFERROR(RTD("cqg.rtd", ,"ContractData",O1, "PerCentNetLastTrade",, "T")/100,"") -> 0.04640980736 | R1: ="https://finance.yahoo.com/quote/"&RIGHT(O1,(LEN(O1)-5)) -> https://finance.yahoo.com/quote/NTLA | T1: =IF(Q1>=0,Q1,NA()) -> 0.04640980736 | U1: =IF(Q1>=0,NA(),-1*Q1) ->  | W1: =IF(Q1<0,"",IFERROR(RTD("cqg.rtd", ,"ContractData",O1, "LongDescription",, "T"),"")) -> Intellia Therapeutics, Inc. | Z1: =IF(W1="","",IFERROR(T1,Q1)) -> 0.04640980736 | AA1: =MIN(J1:J101) -> -0.005465476407 | AB1: =VLOOKUP(AA1,J1:O98,4,FALSE) -> 36 | AC1: =VLOOKUP($AB1,$M$1:$N$101,2,FALSE) -> S.US.GH | AD1: =IF(RTD("cqg.rtd", ,"ContractData",AC1, "PerCentNetLastTrade",, "T")>0,"",IFERROR(RTD("cqg.rtd", ,"ContractData",AC1, "PerCentNetLastTrade",, "T")/100,"")) -> -0.005465476407 | AE1: =IF(AD1>0,"",IFERROR(RTD("cqg.rtd", ,"ContractData",AC1, "LongDescription",, "T"),"")) -> Guardant Health, Inc. | AF1: ="" ->  | AG1: =IF(AD1>0,"",IFERROR(AD1*-1,"")) -> 0.005465476407 | AH1: ="https://finance.yahoo.com/quote/"&RIGHT(AC1,(LEN(AC1)-5)) -> https://finance.yahoo.com/quote/GH
A2: =IF(Symbols!A2="","",Symbols!A2) -> S.US.MASS | B2: =IF(A2="","",IF(J2>0,1,0)) -> 1 | C2: =A2 -> S.US.MASS | D2: =IF(A2="","",RTD("cqg.rtd", ,"ContractData",C2, "LongDescription",, "T")) -> 908 Devices Inc. | H2: =IF(A2="","",RTD("cqg.rtd", ,"ContractData",C2, "LastTradeToday",, "T")) -> 5.68 | I2: =IF(A2="","",RTD("cqg.rtd", ,"ContractData",C2, "NetLastTradeToday",, "T")) -> 0.08 | J2: =IF(A2="","",IFERROR(RTD("cqg.rtd", ,"ContractData",C2, "PerCentNetLastTrade",, "T")/100,"")) -> 0.01428571429 | K2: =IF(A2="","",RTD("cqg.rtd", ,"ContractData", C2, "T_CVol",, "T")) -> 6659 | L2: =L1+1 -> 2 | M2: =IFERROR(RANK($J2,INDIRECT(("$J$"&"1"&":$J$"&$A$103)))+COUNTIF($J$1:J2,J2)-1,"") -> 13 | N2: =C2 -> S.US.MASS | O2: =IFERROR(VLOOKUP($L2,$M$1:$N$101,2,FALSE),"") -> S.US.RXRX | P2: =RTD("cqg.rtd", ,"ContractData",O2, "LongDescription",, "T") -> Recursion Pharmaceuticals, Inc. Class A | Q2: =IFERROR(RTD("cqg.rtd", ,"ContractData",O2, "PerCentNetLastTrade",, "T")/100,"") -> 0.04554865424 | R2: ="https://finance.yahoo.com/quote/"&RIGHT(O2,(LEN(O2)-5)) -> https://finance.yahoo.com/quote/RXRX | T2: =IF(Q2>=0,Q2,NA()) -> 0.04554865424 | U2: =IF(Q2>=0,NA(),-1*Q2) ->  | W2: =IF(Q2<0,"",IFERROR(RTD("cqg.rtd", ,"ContractData",O2, "LongDescription",, "T"),"")) -> Recursion Pharmaceuticals, Inc. Class A | Z2: =IF(W2="","",IFERROR(T2,Q2)) -> 0.04554865424 | AB2: =AB1-1 -> 35 | AC2: =VLOOKUP($AB2,$M$1:$N$101,2,FALSE) -> S.US.IONS | AD2: =IF(RTD("cqg.rtd", ,"ContractData",AC2, "PerCentNetLastTrade",, "T")>0,"",IFERROR(RTD("cqg.rtd", ,"ContractData",AC2, "PerCentNetLastTrade",, "T")/100,"")) -> -0.004591513616 | AE2: =IF(AD2>0,"",IFERROR(RTD("cqg.rtd", ,"ContractData",AC2, "LongDescription",, "T"),"")) -> Ionis Pharmaceuticals, Inc. | AF2: ="" ->  | AG2: =IF(AD2>0,"",IFERROR(AD2*-1,"")) -> 0.004591513616 | AH2: ="https://finance.yahoo.com/quote/"&RIGHT(AC2,(LEN(AC2)-5)) -> https://finance.yahoo.com/quote/IONS
A3: =IF(Symbols!A3="","",Symbols!A3) -> S.US.ABSI | B3: 1 | C3: S.US.ABSI | D3: =IF(A3="","",RTD("cqg.rtd", ,"ContractData",C3, "LongDescription",, "T")) -> Absci Corporation | H3: =IF(A3="","",RTD("cqg.rtd", ,"ContractData",C3, "LastTradeToday",, "T")) -> 2.65 | I3: =IF(A3="","",RTD("cqg.rtd", ,"ContractData",C3, "NetLastTradeToday",, "T")) -> 0.1 | J3: =IF(A3="","",IFERROR(RTD("cqg.rtd", ,"ContractData",C3, "PerCentNetLastTrade",, "T")/100,"")) -> 0.03921568627 | K3: =IF(A3="","",RTD("cqg.rtd", ,"ContractData", C3, "T_CVol",, "T")) -> 533337 | L3: =L2+1 -> 3 | M3: =IFERROR(RANK($J3,INDIRECT(("$J$"&"1"&":$J$"&$A$103)))+COUNTIF($J$1:J3,J3)-1,"") -> 4 | N3: S.US.ABSI | O3: S.US.PRME | P3: =RTD("cqg.rtd", ,"ContractData",O3, "LongDescription",, "T") -> Prime Medicine, Inc. | Q3: =IFERROR(RTD("cqg.rtd", ,"ContractData",O3, "PerCentNetLastTrade",, "T")/100,"") -> 0.03931203931 | R3: https://finance.yahoo.com/quote/PRME | T3: 0.03931203931 | W3: =IF(Q3<0,"",IFERROR(RTD("cqg.rtd", ,"ContractData",O3, "LongDescription",, "T"),"")) -> Prime Medicine, Inc. | Z3: 0.03931203931 | AB3: =AB2-1 -> 34 | AC3: S.US.CMPS | AD3: =IF(RTD("cqg.rtd", ,"ContractData",AC3, "PerCentNetLastTrade",, "T")>0,"",IFERROR(RTD("cqg.rtd", ,"ContractData",AC3, "PerCentNetLastTrade",, "T")/100,"")) -> -0.001923076923 | AE3: =IF(AD3>0,"",IFERROR(RTD("cqg.rtd", ,"ContractData",AC3, "LongDescription",, "T"),"")) -> COMPASS Pathways Plc | AF3: ="" ->  | AG3: 0.001923076923 | AH3: https://finance.yahoo.com/quote/CMPS
A4: =IF(Symbols!A4="","",Symbols!A4) -> S.US.ADPT | B4: 1 | C4: S.US.ADPT | D4: =IF(A4="","",RTD("cqg.rtd", ,"ContractData",C4, "LongDescription",, "T")) -> Adaptive Biotechnologies Corporation | H4: =IF(A4="","",RTD("cqg.rtd", ,"ContractData",C4, "LastTradeToday",, "T")) -> 12.67 | I4: =IF(A4="","",RTD("cqg.rtd", ,"ContractData",C4, "NetLastTradeToday",, "T")) -> 0.06 | J4: =IF(A4="","",IFERROR(RTD("cqg.rtd", ,"ContractData",C4, "PerCentNetLastTrade",, "T")/100,"")) -> 0.004758128469 | K4: =IF(A4="","",RTD("cqg.rtd", ,"ContractData", C4, "T_CVol",, "T")) -> 28212 | L4: 4 | M4: =IFERROR(RANK($J4,INDIRECT(("$J$"&"1"&":$J$"&$A$103)))+COUNTIF($J$1:J4,J4)-1,"") -> 24 | N4: S.US.ADPT | O4: S.US.ABSI | P4: =RTD("cqg.rtd", ,"ContractData",O4, "LongDescription",, "T") -> Absci Corporation | Q4: =IFERROR(RTD("cqg.rtd", ,"ContractData",O4, "PerCentNetLastTrade",, "T")/100,"") -> 0.03921568627 | R4: https://finance.yahoo.com/quote/ABSI | T4: 0.03921568627 | W4: =IF(Q4<0,"",IFERROR(RTD("cqg.rtd", ,"ContractData",O4, "LongDescription",, "T"),"")) -> Absci Corporation | Z4: 0.03921568627 | AB4: 33 | AC4: S.US.CDNA | AD4: =IF(RTD("cqg.rtd", ,"ContractData",AC4, "PerCentNetLastTrade",, "T")>0,"",IFERROR(RTD("cqg.rtd", ,"ContractData",AC4, "PerCentNetLastTrade",, "T")/100,"")) -> -0.0007390983001 | AE4: =IF(AD4>0,"",IFERROR(RTD("cqg.rtd", ,"ContractData",AC4, "LongDescription",, "T"),"")) -> CareDx, Inc. | AF4: ="" ->  | AG4: 0.0007390983001 | AH4: https://finance.yahoo.com/quote/CDNA
A5: =IF(Symbols!A5="","",Symbols!A5) -> S.US.AMGN | B5: 1 | C5: S.US.AMGN | D5: =IF(A5="","",RTD("cqg.rtd", ,"ContractData",C5, "LongDescription",, "T")) -> Amgen Inc | H5: =IF(A5="","",RTD("cqg.rtd", ,"ContractData",C5, "LastTradeToday",, "T")) -> 276.64 | I5: =IF(A5="","",RTD("cqg.rtd", ,"ContractData",C5, "NetLastTradeToday",, "T")) -> 0.25 | J5: =IF(A5="","",IFERROR(RTD("cqg.rtd", ,"ContractData",C5, "PerCentNetLastTrade",, "T")/100,"")) -> 0.0009045189768 | K5: =IF(A5="","",RTD("cqg.rtd", ,"ContractData", C5, "T_CVol",, "T")) -> 62593 | L5: 5 | M5: =IFERROR(RANK($J5,INDIRECT(("$J$"&"1"&":$J$"&$A$103)))+COUNTIF($J$1:J5,J5)-1,"") -> 29 | N5: S.US.AMGN | O5: S.US.BEAM | P5: =RTD("cqg.rtd", ,"ContractData",O5, "LongDescription",, "T") -> Beam Therapeutics Inc. | Q5: =IFERROR(RTD("cqg.rtd", ,"ContractData",O5, "PerCentNetLastTrade",, "T")/100,"") -> 0.03883495146 | R5: https://finance.yahoo.com/quote/BEAM | T5: 0.03883495146 | W5: =IF(Q5<0,"",IFERROR(RTD("cqg.rtd", ,"ContractData",O5, "LongDescription",, "T"),"")) -> Beam Therapeutics Inc. | Z5: 0.03883495146 | AB5: 32 | AC5: S.US.NTRA | AD5: =IF(RTD("cqg.rtd", ,"ContractData",AC5, "PerCentNetLastTrade",, "T")>0,"",IFERROR(RTD("cqg.rtd", ,"ContractData",AC5, "PerCentNetLastTrade",, "T")/100,"")) -> -0.0004154056139 | AE5: =IF(AD5>0,"",IFERROR(RTD("cqg.rtd", ,"ContractData",AC5, "LongDescription",, "T"),"")) -> Natera, Inc. | AF5: ="" ->  | AG5: 0.0004154056139 | AH5: https://finance.yahoo.com/quote/NTRA
A6: =IF(Symbols!A6="","",Symbols!A6) -> S.US.ARCT | B6: 1 | C6: S.US.ARCT | D6: =IF(A6="","",RTD("cqg.rtd", ,"ContractData",C6, "LongDescription",, "T")) -> Arcturus Therapeutics Holdings Inc. | H6: =IF(A6="","",RTD("cqg.rtd", ,"ContractData",C6, "LastTradeToday",, "T")) -> 17.46 | I6: =IF(A6="","",RTD("cqg.rtd", ,"ContractData",C6, "NetLastTradeToday",, "T")) -> 0.14 | J6: =IF(A6="","",IFERROR(RTD("cqg.rtd", ,"ContractData",C6, "PerCentNetLastTrade",, "T")/100,"")) -> 0.008083140878 | K6: =IF(A6="","",RTD("cqg.rtd", ,"ContractData", C6, "T_CVol",, "T")) -> 12590 | L6: 6 | M6: =IFERROR(RANK($J6,INDIRECT(("$J$"&"1"&":$J$"&$A$103)))+COUNTIF($J$1:J6,J6)-1,"") -> 16 | N6: S.US.ARCT | O6: S.US.CRSP | P6: =RTD("cqg.rtd", ,"ContractData",O6, "LongDescription",, "T") -> CRISPR Therapeutics AG | Q6: =IFERROR(RTD("cqg.rtd", ,"ContractData",O6, "PerCentNetLastTrade",, "T")/100,"") -> 0.03857092073 | R6: https://finance.yahoo.com/quote/CRSP | T6: 0.03857092073 | W6: =IF(Q6<0,"",IFERROR(RTD("cqg.rtd", ,"ContractData",O6, "LongDescription",, "T"),"")) -> CRISPR Therapeutics AG | Z6: 0.03857092073 | AB6: 31 | AC6: S.US.LAB | AD6: =IF(RTD("cqg.rtd", ,"ContractData",AC6, "PerCentNetLastTrade",, "T")>0,"",IFERROR(RTD("cqg.rtd", ,"ContractData",AC6, "PerCentNetLastTrade",, "T")/100,"")) -> 0 | AE6: =IF(AD6>0,"",IFERROR(RTD("cqg.rtd", ,"ContractData",AC6, "LongDescription",, "T"),"")) -> Standard BioTools Inc. | AF6: ="" ->  | AG6: 0 | AH6: https://finance.yahoo.com/quote/LAB
A7: =IF(Symbols!A7="","",Symbols!A7) -> S.US.ATAI | B7: 1 | C7: S.US.ATAI | D7: =IF(A7="","",RTD("cqg.rtd", ,"ContractData",C7, "LongDescription",, "T")) -> ATAI Life Sciences N.V. | H7: =IF(A7="","",RTD("cqg.rtd", ,"ContractData",C7, "LastTradeToday",, "T")) -> 4.65 | I7: =IF(A7="","",RTD("cqg.rtd", ,"ContractData",C7, "NetLastTradeToday",, "T")) -> 0.02 | J7: =IF(A7="","",IFERROR(RTD("cqg.rtd", ,"ContractData",C7, "PerCentNetLastTrade",, "T")/100,"")) -> 0.004319654428 | K7: =IF(A7="","",RTD("cqg.rtd", ,"ContractData", C7, "T_CVol",, "T")) -> 219245 | L7: 7 | M7: =IFERROR(RANK($J7,INDIRECT(("$J$"&"1"&":$J$"&$A$103)))+COUNTIF($J$1:J7,J7)-1,"") -> 25 | N7: S.US.ATAI | O7: S.US.TXG | P7: =RTD("cqg.rtd", ,"ContractData",O7, "LongDescription",, "T") -> 10x Genomics, Inc. Class A | Q7: =IFERROR(RTD("cqg.rtd", ,"ContractData",O7, "PerCentNetLastTrade",, "T")/100,"") -> 0.02848101266 | R7: https://finance.yahoo.com/quote/TXG | T7: 0.02848101266 | W7: =IF(Q7<0,"",IFERROR(RTD("cqg.rtd", ,"ContractData",O7, "LongDescription",, "T"),"")) -> 10x Genomics, Inc. Class A | Z7: 0.02848101266 | AB7: 30 | AC7: S.US.WGS | AD7: =IF(RTD("cqg.rtd", ,"ContractData",AC7, "PerCentNetLastTrade",, "T")>0,"",IFERROR(RTD("cqg.rtd", ,"ContractData",AC7, "PerCentNetLastTrade",, "T")/100,"")) ->  | AE7: =IF(AD7>0,"",IFERROR(RTD("cqg.rtd", ,"ContractData",AC7, "LongDescription",, "T"),"")) ->  | AF7: ="" ->  | AH7: https://finance.yahoo.com/quote/WGS
A8: =IF(Symbols!A8="","",Symbols!A8) -> S.US.BEAM | B8: 1 | C8: S.US.BEAM | D8: =IF(A8="","",RTD("cqg.rtd", ,"ContractData",C8, "LongDescription",, "T")) -> Beam Therapeutics Inc. | H8: =IF(A8="","",RTD("cqg.rtd", ,"ContractData",C8, "LastTradeToday",, "T")) -> 21.4 | I8: =IF(A8="","",RTD("cqg.rtd", ,"ContractData",C8, "NetLastTradeToday",, "T")) -> 0.8 | J8: =IF(A8="","",IFERROR(RTD("cqg.rtd", ,"ContractData",C8, "PerCentNetLastTrade",, "T")/100,"")) -> 0.03883495146 | K8: =IF(A8="","",RTD("cqg.rtd", ,"ContractData", C8, "T_CVol",, "T")) -> 61049 | L8: 8 | M8: =IFERROR(RANK($J8,INDIRECT(("$J$"&"1"&":$J$"&$A$103)))+COUNTIF($J$1:J8,J8)-1,"") -> 5 | N8: S.US.BEAM | O8: S.US.PACB | P8: =RTD("cqg.rtd", ,"ContractData",O8, "LongDescription",, "T") -> Pacific Biosciences of California, Inc. | Q8: =IFERROR(RTD("cqg.rtd", ,"ContractData",O8, "PerCentNetLastTrade",, "T")/100,"") -> 0.02564102564 | R8: https://finance.yahoo.com/quote/PACB | T8: 0.02564102564 | W8: =IF(Q8<0,"",IFERROR(RTD("cqg.rtd", ,"ContractData",O8, "LongDescription",, "T"),"")) -> Pacific Biosciences of California, Inc. | Z8: 0.02564102564 | AB8: 29 | AC8: S.US.AMGN | AD8: =IF(RTD("cqg.rtd", ,"ContractData",AC8, "PerCentNetLastTrade",, "T")>0,"",IFERROR(RTD("cqg.rtd", ,"ContractData",AC8, "PerCentNetLastTrade",, "T")/100,"")) ->  | AE8: =IF(AD8>0,"",IFERROR(RTD("cqg.rtd", ,"ContractData",AC8, "LongDescription",, "T"),"")) ->  | AF8: ="" ->  | AH8: https://finance.yahoo.com/quote/AMGN
A9: =IF(Symbols!A9="","",Symbols!A9) -> S.US.BFLY | B9: 1 | C9: S.US.BFLY | D9: =IF(A9="","",RTD("cqg.rtd", ,"ContractData",C9, "LongDescription",, "T")) -> Butterfly Network, Inc. | H9: =IF(A9="","",RTD("cqg.rtd", ,"ContractData",C9, "LastTradeToday",, "T")) -> 1.6 | I9: =IF(A9="","",RTD("cqg.rtd", ,"ContractData",C9, "NetLastTradeToday",, "T")) -> 0.03 | J9: =IF(A9="","",IFERROR(RTD("cqg.rtd", ,"ContractData",C9, "PerCentNetLastTrade",, "T")/100,"")) -> 0.01910828025 | K9: =IF(A9="","",RTD("cqg.rtd", ,"ContractData", C9, "T_CVol",, "T")) -> 322248 | L9: 9 | M9: =IFERROR(RANK($J9,INDIRECT(("$J$"&"1"&":$J$"&$A$103)))+COUNTIF($J$1:J9,J9)-1,"") -> 10 | N9: S.US.BFLY | O9: S.US.QSI | P9: =RTD("cqg.rtd", ,"ContractData",O9, "LongDescription",, "T") -> Quantum-Si Incorporated Class A | Q9: =IFERROR(RTD("cqg.rtd", ,"ContractData",O9, "PerCentNetLastTrade",, "T")/100,"") -> 0.02542372881 | R9: https://finance.yahoo.com/quote/QSI | T9: 0.02542372881 | W9: =IF(Q9<0,"",IFERROR(RTD("cqg.rtd", ,"ContractData",O9, "LongDescription",, "T"),"")) -> Quantum-Si Incorporated Class A | Z9: 0.02542372881 | AB9: 28 | AC9: S.US.PSNL | AD9: =IF(RTD("cqg.rtd", ,"ContractData",AC9, "PerCentNetLastTrade",, "T")>0,"",IFERROR(RTD("cqg.rtd", ,"ContractData",AC9, "PerCentNetLastTrade",, "T")/100,"")) ->  | AE9: =IF(AD9>0,"",IFERROR(RTD("cqg.rtd", ,"ContractData",AC9, "LongDescription",, "T"),"")) ->  | AF9: ="" ->  | AH9: https://finance.yahoo.com/quote/PSNL
A10: =IF(Symbols!A10="","",Symbols!A10) -> S.US.CDNA | B10: 0 | C10: S.US.CDNA | D10: =IF(A10="","",RTD("cqg.rtd", ,"ContractData",C10, "LongDescription",, "T")) -> CareDx, Inc. | H10: =IF(A10="","",RTD("cqg.rtd", ,"ContractData",C10, "LastTradeToday",, "T")) -> 13.52 | I10: =IF(A10="","",RTD("cqg.rtd", ,"ContractData",C10, "NetLastTradeToday",, "T")) -> -0.01 | J10: =IF(A10="","",IFERROR(RTD("cqg.rtd", ,"ContractData",C10, "PerCentNetLastTrade",, "T")/100,"")) -> -0.0007390983001 | K10: =IF(A10="","",RTD("cqg.rtd", ,"ContractData", C10, "T_CVol",, "T")) -> 14277 | L10: 10 | M10: =IFERROR(RANK($J10,INDIRECT(("$J$"&"1"&":$J$"&$A$103)))+COUNTIF($J$1:J10,J10)-1,"") -> 33 | N10: S.US.CDNA | O10: S.US.BFLY | P10: =RTD("cqg.rtd", ,"ContractData",O10, "LongDescription",, "T") -> Butterfly Network, Inc. | Q10: =IFERROR(RTD("cqg.rtd", ,"ContractData",O10, "PerCentNetLastTrade",, "T")/100,"") -> 0.01910828025 | R10: https://finance.yahoo.com/quote/BFLY | T10: 0.01910828025 | W10: =IF(Q10<0,"",IFERROR(RTD("cqg.rtd", ,"ContractData",O10, "LongDescription",, "T"),"")) -> Butterfly Network, Inc. | Z10: 0.01910828025 | AB10: 27 | AC10: S.US.INCY | AD10: =IF(RTD("cqg.rtd", ,"ContractData",AC10, "PerCentNetLastTrade",, "T")>0,"",IFERROR(RTD("cqg.rtd", ,"ContractData",AC10, "PerCentNetLastTrade",, "T")/100,"")) ->  | AE10: =IF(AD10>0,"",IFERROR(RTD("cqg.rtd", ,"ContractData",AC10, "LongDescription",, "T"),"")) ->  | AF10: ="" ->  | AH10: https://finance.yahoo.com/quote/INCY
A11: =IF(Symbols!A11="","",Symbols!A11) -> S.US.CAI | B11: 1 | C11: S.US.CAI | D11: =IF(A11="","",RTD("cqg.rtd", ,"ContractData",C11, "LongDescription",, "T")) -> Caris Life Sciences, Inc. | H11: =IF(A11="","",RTD("cqg.rtd", ,"ContractData",C11, "LastTradeToday",, "T")) -> 34.31 | I11: =IF(A11="","",RTD("cqg.rtd", ,"ContractData",C11, "NetLastTradeToday",, "T")) -> 0.25 | J11: =IF(A11="","",IFERROR(RTD("cqg.rtd", ,"ContractData",C11, "PerCentNetLastTrade",, "T")/100,"")) -> 0.007339988256 | K11: =IF(A11="","",RTD("cqg.rtd", ,"ContractData", C11, "T_CVol",, "T")) -> 2727 | L11: 11 | M11: =IFERROR(RANK($J11,INDIRECT(("$J$"&"1"&":$J$"&$A$103)))+COUNTIF($J$1:J11,J11)-1,"") -> 19 | N11: S.US.CAI | O11: S.US.CERS | P11: =RTD("cqg.rtd", ,"ContractData",O11, "LongDescription",, "T") -> Cerus Corp | Q11: =IFERROR(RTD("cqg.rtd", ,"ContractData",O11, "PerCentNetLastTrade",, "T")/100,"") -> 0.0162601626 | R11: https://finance.yahoo.com/quote/CERS | T11: 0.0162601626 | W11: =IF(Q11<0,"",IFERROR(RTD("cqg.rtd", ,"ContractData",O11, "LongDescription",, "T"),"")) -> Cerus Corp | Z11: 0.0162601626 | AB11: 26 | AC11: S.US.EXAS | AD11: =IF(RTD("cqg.rtd", ,"ContractData",AC11, "PerCentNetLastTrade",, "T")>0,"",IFERROR(RTD("cqg.rtd", ,"ContractData",AC11, "PerCentNetLastTrade",, "T")/100,"")) ->  | AE11: =IF(AD11>0,"",IFERROR(RTD("cqg.rtd", ,"ContractData",AC11, "LongDescription",, "T"),"")) ->  | AF11: ="" ->  | AH11: https://finance.yahoo.com/quote/EXAS
A12: =IF(Symbols!A12="","",Symbols!A12) -> S.US.CERS | B12: 1 | C12: S.US.CERS | D12: =IF(A12="","",RTD("cqg.rtd", ,"ContractData",C12, "LongDescription",, "T")) -> Cerus Corp | H12: =IF(A12="","",RTD("cqg.rtd", ,"ContractData",C12, "LastTradeToday",, "T")) -> 1.25 | I12: =IF(A12="","",RTD("cqg.rtd", ,"ContractData",C12, "NetLastTradeToday",, "T")) -> 0.02 | J12: =IF(A12="","",IFERROR(RTD("cqg.rtd", ,"ContractData",C12, "PerCentNetLastTrade",, "T")/100,"")) -> 0.0162601626 | K12: =IF(A12="","",RTD("cqg.rtd", ,"ContractData", C12, "T_CVol",, "T")) -> 11963 | L12: 12 | M12: =IFERROR(RANK($J12,INDIRECT(("$J$"&"1"&":$J$"&$A$103)))+COUNTIF($J$1:J12,J12)-1,"") -> 11 | N12: S.US.CERS | O12: S.US.TWST | P12: =RTD("cqg.rtd", ,"ContractData",O12, "LongDescription",, "T") -> Twist Bioscience Corporation | Q12: =IFERROR(RTD("cqg.rtd", ,"ContractData",O12, "PerCentNetLastTrade",, "T")/100,"") -> 0.01540892928 | R12: https://finance.yahoo.com/quote/TWST | T12: 0.01540892928 | W12: =IF(Q12<0,"",IFERROR(RTD("cqg.rtd", ,"ContractData",O12, "LongDescription",, "T"),"")) -> Twist Bioscience Corporation | Z12: 0.01540892928 | AB12: 25 | AC12: S.US.ATAI | AD12: =IF(RTD("cqg.rtd", ,"ContractData",AC12, "PerCentNetLastTrade",, "T")>0,"",IFERROR(RTD("cqg.rtd", ,"ContractData",AC12, "PerCentNetLastTrade",, "T")/100,"")) ->  | AE12: =IF(AD12>0,"",IFERROR(RTD("cqg.rtd", ,"ContractData",AC12, "LongDescription",, "T"),"")) ->  | AF12: ="" ->  | AH12: https://finance.yahoo.com/quote/ATAI
A13: =IF(Symbols!A13="","",Symbols!A13) -> S.US.CMPS | B13: 0 | C13: S.US.CMPS | D13: =IF(A13="","",RTD("cqg.rtd", ,"ContractData",C13, "LongDescription",, "T")) -> COMPASS Pathways Plc | H13: =IF(A13="","",RTD("cqg.rtd", ,"ContractData",C13, "LastTradeToday",, "T")) -> 5.19 | I13: =IF(A13="","",RTD("cqg.rtd", ,"ContractData",C13, "NetLastTradeToday",, "T")) -> -0.01 | J13: =IF(A13="","",IFERROR(RTD("cqg.rtd", ,"ContractData",C13, "PerCentNetLastTrade",, "T")/100,"")) -> -0.001923076923 | K13: =IF(A13="","",RTD("cqg.rtd", ,"ContractData", C13, "T_CVol",, "T")) -> 39816 | L13: 13 | M13: =IFERROR(RANK($J13,INDIRECT(("$J$"&"1"&":$J$"&$A$103)))+COUNTIF($J$1:J13,J13)-1,"") -> 34 | N13: S.US.CMPS | O13: S.US.MASS | P13: =RTD("cqg.rtd", ,"ContractData",O13, "LongDescription",, "T") -> 908 Devices Inc. | Q13: =IFERROR(RTD("cqg.rtd", ,"ContractData",O13, "PerCentNetLastTrade",, "T")/100,"") -> 0.01428571429 | R13: https://finance.yahoo.com/quote/MASS | T13: 0.01428571429 | W13: =IF(Q13<0,"",IFERROR(RTD("cqg.rtd", ,"ContractData",O13, "LongDescription",, "T"),"")) -> 908 Devices Inc. | Z13: 0.01428571429 | AB13: 24 | AC13: S.US.ADPT | AD13: =IF(RTD("cqg.rtd", ,"ContractData",AC13, "PerCentNetLastTrade",, "T")>0,"",IFERROR(RTD("cqg.rtd", ,"ContractData",AC13, "PerCentNetLastTrade",, "T")/100,"")) ->  | AE13: =IF(AD13>0,"",IFERROR(RTD("cqg.rtd", ,"ContractData",AC13, "LongDescription",, "T"),"")) ->  | AF13: ="" ->  | AH13: https://finance.yahoo.com/quote/ADPT
A14: =IF(Symbols!A14="","",Symbols!A14) -> S.US.CRSP | B14: 1 | C14: S.US.CRSP | D14: =IF(A14="","",RTD("cqg.rtd", ,"ContractData",C14, "LongDescription",, "T")) -> CRISPR Therapeutics AG | H14: =IF(A14="","",RTD("cqg.rtd", ,"ContractData",C14, "LastTradeToday",, "T")) -> 58.43 | I14: =IF(A14="","",RTD("cqg.rtd", ,"ContractData",C14, "NetLastTradeToday",, "T")) -> 2.17 | J14: =IF(A14="","",IFERROR(RTD("cqg.rtd", ,"ContractData",C14, "PerCentNetLastTrade",, "T")/100,"")) -> 0.03857092073 | K14: =IF(A14="","",RTD("cqg.rtd", ,"ContractData", C14, "T_CVol",, "T")) -> 191611 | L14: 14 | M14: =IFERROR(RANK($J14,INDIRECT(("$J$"&"1"&":$J$"&$A$103)))+COUNTIF($J$1:J14,J14)-1,"") -> 6 | N14: S.US.CRSP | O14: S.US.VEEV | P14: =RTD("cqg.rtd", ,"ContractData",O14, "LongDescription",, "T") -> VEEVA Systems, Inc. | Q14: =IFERROR(RTD("cqg.rtd", ,"ContractData",O14, "PerCentNetLastTrade",, "T")/100,"") -> 0.008971529863 | R14: https://finance.yahoo.com/quote/VEEV | T14: 0.008971529863 | W14: =IF(Q14<0,"",IFERROR(RTD("cqg.rtd", ,"ContractData",O14, "LongDescription",, "T"),"")) -> VEEVA Systems, Inc. | Z14: 0.008971529863 | AB14: 23 | AC14: S.US.ILMN | AD14: =IF(RTD("cqg.rtd", ,"ContractData",AC14, "PerCentNetLastTrade",, "T")>0,"",IFERROR(RTD("cqg.rtd", ,"ContractData",AC14, "PerCentNetLastTrade",, "T")/100,"")) ->  | AE14: =IF(AD14>0,"",IFERROR(RTD("cqg.rtd", ,"ContractData",AC14, "LongDescription",, "T"),"")) ->  | AF14: ="" ->  | AH14: https://finance.yahoo.com/quote/ILMN
A15: =IF(Symbols!A15="","",Symbols!A15) -> S.US.EXAS | B15: 1 | C15: S.US.EXAS | D15: =IF(A15="","",RTD("cqg.rtd", ,"ContractData",C15, "LongDescription",, "T")) -> EXACT Sciences Corp | H15: =IF(A15="","",RTD("cqg.rtd", ,"ContractData",C15, "LastTradeToday",, "T")) -> 54.06 | I15: =IF(A15="","",RTD("cqg.rtd", ,"ContractData",C15, "NetLastTradeToday",, "T")) -> 0.12 | J15: =IF(A15="","",IFERROR(RTD("cqg.rtd", ,"ContractData",C15, "PerCentNetLastTrade",, "T")/100,"")) -> 0.002224694105 | K15: =IF(A15="","",RTD("cqg.rtd", ,"ContractData", C15, "T_CVol",, "T")) -> 39493 | L15: 15 | M15: =IFERROR(RANK($J15,INDIRECT(("$J$"&"1"&":$J$"&$A$103)))+COUNTIF($J$1:J15,J15)-1,"") -> 26 | N15: S.US.EXAS | O15: S.US.VCYT | P15: =RTD("cqg.rtd", ,"ContractData",O15, "LongDescription",, "T") -> Veracyte, Inc. | Q15: =IFERROR(RTD("cqg.rtd", ,"ContractData",O15, "PerCentNetLastTrade",, "T")/100,"") -> 0.008095854922 | R15: https://finance.yahoo.com/quote/VCYT | T15: 0.008095854922 | W15: =IF(Q15<0,"",IFERROR(RTD("cqg.rtd", ,"ContractData",O15, "LongDescription",, "T"),"")) -> Veracyte, Inc. | Z15: 0.008095854922 | AB15: 22 | AC15: S.US.SDGR | AD15: =IF(RTD("cqg.rtd", ,"ContractData",AC15, "PerCentNetLastTrade",, "T")>0,"",IFERROR(RTD("cqg.rtd", ,"ContractData",AC15, "PerCentNetLastTrade",, "T")/100,"")) ->  | AE15: =IF(AD15>0,"",IFERROR(RTD("cqg.rtd", ,"ContractData",AC15, "LongDescription",, "T"),"")) ->  | AF15: ="" ->  | AH15: https://finance.yahoo.com/quote/SDGR
A16: =IF(Symbols!A16="","",Symbols!A16) -> S.US.WGS | B16: 1 | C16: S.US.WGS | D16: =IF(A16="","",RTD("cqg.rtd", ,"ContractData",C16, "LongDescription",, "T")) -> GeneDx Holdings Corp. | H16: =IF(A16="","",RTD("cqg.rtd", ,"ContractData",C16, "LastTradeToday",, "T")) -> 124 | I16: =IF(A16="","",RTD("cqg.rtd", ,"ContractData",C16, "NetLastTradeToday",, "T")) -> 0.05 | J16: =IF(A16="","",IFERROR(RTD("cqg.rtd", ,"ContractData",C16, "PerCentNetLastTrade",, "T")/100,"")) -> 0.0004033884631 | K16: =IF(A16="","",RTD("cqg.rtd", ,"ContractData", C16, "T_CVol",, "T")) -> 3490 | L16: 16 | M16: =IFERROR(RANK($J16,INDIRECT(("$J$"&"1"&":$J$"&$A$103)))+COUNTIF($J$1:J16,J16)-1,"") -> 30 | N16: S.US.WGS | O16: S.US.ARCT
A17: =IF(Symbols!A17="","",Symbols!A17) -> S.US.GH | B17: 0 | C17: S.US.GH | D17: =IF(A17="","",RTD("cqg.rtd", ,"ContractData",C17, "LongDescription",, "T")) -> Guardant Health, Inc. | H17: =IF(A17="","",RTD("cqg.rtd", ,"ContractData",C17, "LastTradeToday",, "T")) -> 54.59 | I17: =IF(A17="","",RTD("cqg.rtd", ,"ContractData",C17, "NetLastTradeToday",, "T")) -> -0.3 | J17: =IF(A17="","",IFERROR(RTD("cqg.rtd", ,"ContractData",C17, "PerCentNetLastTrade",, "T")/100,"")) -> -0.005465476407 | K17: =IF(A17="","",RTD("cqg.rtd", ,"ContractData", C17, "T_CVol",, "T")) -> 54782 | L17: 17 | M17: =IFERROR(RANK($J17,INDIRECT(("$J$"&"1"&":$J$"&$A$103)))+COUNTIF($J$1:J17,J17)-1,"") -> 36 | N17: S.US.GH | O17: S.US.NRIX
A18: =IF(Symbols!A18="","",Symbols!A18) -> S.US.ILMN | B18: 1 | C18: S.US.ILMN | D18: =IF(A18="","",RTD("cqg.rtd", ,"ContractData",C18, "LongDescription",, "T")) -> Illumina Inc | H18: =IF(A18="","",RTD("cqg.rtd", ,"ContractData",C18, "LastTradeToday",, "T")) -> 95.68 | I18: =IF(A18="","",RTD("cqg.rtd", ,"ContractData",C18, "NetLastTradeToday",, "T")) -> 0.56 | J18: =IF(A18="","",IFERROR(RTD("cqg.rtd", ,"ContractData",C18, "PerCentNetLastTrade",, "T")/100,"")) -> 0.005887300252 | K18: =IF(A18="","",RTD("cqg.rtd", ,"ContractData", C18, "T_CVol",, "T")) -> 25414 | L18: 18 | M18: =IFERROR(RANK($J18,INDIRECT(("$J$"&"1"&":$J$"&$A$103)))+COUNTIF($J$1:J18,J18)-1,"") -> 23 | N18: S.US.ILMN | O18: S.US.VRTX
A19: =IF(Symbols!A19="","",Symbols!A19) -> S.US.INCY | B19: 1 | C19: S.US.INCY | D19: =IF(A19="","",RTD("cqg.rtd", ,"ContractData",C19, "LongDescription",, "T")) -> Incyte Corporation | H19: =IF(A19="","",RTD("cqg.rtd", ,"ContractData",C19, "LastTradeToday",, "T")) -> 83.25 | I19: =IF(A19="","",RTD("cqg.rtd", ,"ContractData",C19, "NetLastTradeToday",, "T")) -> 0.15 | J19: =IF(A19="","",IFERROR(RTD("cqg.rtd", ,"ContractData",C19, "PerCentNetLastTrade",, "T")/100,"")) -> 0.001805054152 | K19: =IF(A19="","",RTD("cqg.rtd", ,"ContractData", C19, "T_CVol",, "T")) -> 27272 | L19: 19 | M19: =IFERROR(RANK($J19,INDIRECT(("$J$"&"1"&":$J$"&$A$103)))+COUNTIF($J$1:J19,J19)-1,"") -> 27 | N19: S.US.INCY | O19: S.US.CAI
A20: =IF(Symbols!A20="","",Symbols!A20) -> S.US.NTLA | B20: 1 | C20: S.US.NTLA | D20: =IF(A20="","",RTD("cqg.rtd", ,"ContractData",C20, "LongDescription",, "T")) -> Intellia Therapeutics, Inc. | H20: =IF(A20="","",RTD("cqg.rtd", ,"ContractData",C20, "LastTradeToday",, "T")) -> 11.95 | I20: =IF(A20="","",RTD("cqg.rtd", ,"ContractData",C20, "NetLastTradeToday",, "T")) -> 0.53 | J20: =IF(A20="","",IFERROR(RTD("cqg.rtd", ,"ContractData",C20, "PerCentNetLastTrade",, "T")/100,"")) -> 0.04640980736 | K20: =IF(A20="","",RTD("cqg.rtd", ,"ContractData", C20, "T_CVol",, "T")) -> 439422 | L20: 20 | M20: =IFERROR(RANK($J20,INDIRECT(("$J$"&"1"&":$J$"&$A$103)))+COUNTIF($J$1:J20,J20)-1,"") -> 1 | N20: S.US.NTLA | O20: S.US.TEM
A21: =IF(Symbols!A21="","",Symbols!A21) -> S.US.IONS | B21: 0 | C21: S.US.IONS | D21: =IF(A21="","",RTD("cqg.rtd", ,"ContractData",C21, "LongDescription",, "T")) -> Ionis Pharmaceuticals, Inc. | H21: =IF(A21="","",RTD("cqg.rtd", ,"ContractData",C21, "LastTradeToday",, "T")) -> 62.87 | I21: =IF(A21="","",RTD("cqg.rtd", ,"ContractData",C21, "NetLastTradeToday",, "T")) -> -0.29 | J21: =IF(A21="","",IFERROR(RTD("cqg.rtd", ,"ContractData",C21, "PerCentNetLastTrade",, "T")/100,"")) -> -0.004591513616 | K21: =IF(A21="","",RTD("cqg.rtd", ,"ContractData", C21, "T_CVol",, "T")) -> 35194 | L21: 21 | M21: =IFERROR(RANK($J21,INDIRECT(("$J$"&"1"&":$J$"&$A$103)))+COUNTIF($J$1:J21,J21)-1,"") -> 35 | N21: S.US.IONS | O21: S.US.REGN
A22: =IF(Symbols!A22="","",Symbols!A22) -> S.US.NTRA | B22: 0 | C22: S.US.NTRA | D22: =IF(A22="","",RTD("cqg.rtd", ,"ContractData",C22, "LongDescription",, "T")) -> Natera, Inc. | H22: =IF(A22="","",RTD("cqg.rtd", ,"ContractData",C22, "LastTradeToday",, "T")) -> 168.44 | I22: =IF(A22="","",RTD("cqg.rtd", ,"ContractData",C22, "NetLastTradeToday",, "T")) -> -0.07 | J22: =IF(A22="","",IFERROR(RTD("cqg.rtd", ,"ContractData",C22, "PerCentNetLastTrade",, "T")/100,"")) -> -0.0004154056139 | K22: =IF(A22="","",RTD("cqg.rtd", ,"ContractData", C22, "T_CVol",, "T")) -> 26093 | L22: 22 | M22: =IFERROR(RANK($J22,INDIRECT(("$J$"&"1"&":$J$"&$A$103)))+COUNTIF($J$1:J22,J22)-1,"") -> 32 | N22: S.US.NTRA | O22: S.US.SDGR
A23: =IF(Symbols!A23="","",Symbols!A23) -> S.US.NRIX | B23: 1 | C23: S.US.NRIX | D23: =IF(A23="","",RTD("cqg.rtd", ,"ContractData",C23, "LongDescription",, "T")) -> Nurix Therapeutics, Inc | H23: =IF(A23="","",RTD("cqg.rtd", ,"ContractData",C23, "LastTradeToday",, "T")) -> 9.11 | I23: =IF(A23="","",RTD("cqg.rtd", ,"ContractData",C23, "NetLastTradeToday",, "T")) -> 0.07 | J23: =IF(A23="","",IFERROR(RTD("cqg.rtd", ,"ContractData",C23, "PerCentNetLastTrade",, "T")/100,"")) -> 0.007743362832 | K23: =IF(A23="","",RTD("cqg.rtd", ,"ContractData", C23, "T_CVol",, "T")) -> 12426 | L23: 23 | M23: =IFERROR(RANK($J23,INDIRECT(("$J$"&"1"&":$J$"&$A$103)))+COUNTIF($J$1:J23,J23)-1,"") -> 17 | N23: S.US.NRIX | O23: S.US.ILMN
A24: =IF(Symbols!A24="","",Symbols!A24) -> S.US.PACB | B24: 1 | C24: S.US.PACB | D24: =IF(A24="","",RTD("cqg.rtd", ,"ContractData",C24, "LongDescription",, "T")) -> Pacific Biosciences of California, Inc. | H24: =IF(A24="","",RTD("cqg.rtd", ,"ContractData",C24, "LastTradeToday",, "T")) -> 1.2 | I24: =IF(A24="","",RTD("cqg.rtd", ,"ContractData",C24, "NetLastTradeToday",, "T")) -> 0.03 | J24: =IF(A24="","",IFERROR(RTD("cqg.rtd", ,"ContractData",C24, "PerCentNetLastTrade",, "T")/100,"")) -> 0.02564102564 | K24: =IF(A24="","",RTD("cqg.rtd", ,"ContractData", C24, "T_CVol",, "T")) -> 325397 | L24: 24 | M24: =IFERROR(RANK($J24,INDIRECT(("$J$"&"1"&":$J$"&$A$103)))+COUNTIF($J$1:J24,J24)-1,"") -> 8 | N24: S.US.PACB | O24: S.US.ADPT
A25: =IF(Symbols!A25="","",Symbols!A25) -> S.US.PSNL | B25: 1 | C25: S.US.PSNL | D25: =IF(A25="","",RTD("cqg.rtd", ,"ContractData",C25, "LongDescription",, "T")) -> Personalis, Inc. | H25: =IF(A25="","",RTD("cqg.rtd", ,"ContractData",C25, "LastTradeToday",, "T")) -> 5.86 | I25: =IF(A25="","",RTD("cqg.rtd", ,"ContractData",C25, "NetLastTradeToday",, "T")) -> 0.01 | J25: =IF(A25="","",IFERROR(RTD("cqg.rtd", ,"ContractData",C25, "PerCentNetLastTrade",, "T")/100,"")) -> 0.001709401709 | K25: =IF(A25="","",RTD("cqg.rtd", ,"ContractData", C25, "T_CVol",, "T")) -> 20151 | L25: 25 | M25: =IFERROR(RANK($J25,INDIRECT(("$J$"&"1"&":$J$"&$A$103)))+COUNTIF($J$1:J25,J25)-1,"") -> 28 | N25: S.US.PSNL | O25: S.US.ATAI
A26: =IF(Symbols!A26="","",Symbols!A26) -> S.US.PRME | B26: 1 | C26: S.US.PRME | D26: =IF(A26="","",RTD("cqg.rtd", ,"ContractData",C26, "LongDescription",, "T")) -> Prime Medicine, Inc. | H26: =IF(A26="","",RTD("cqg.rtd", ,"ContractData",C26, "LastTradeToday",, "T")) -> 4.23 | I26: =IF(A26="","",RTD("cqg.rtd", ,"ContractData",C26, "NetLastTradeToday",, "T")) -> 0.16 | J26: =IF(A26="","",IFERROR(RTD("cqg.rtd", ,"ContractData",C26, "PerCentNetLastTrade",, "T")/100,"")) -> 0.03931203931 | K26: =IF(A26="","",RTD("cqg.rtd", ,"ContractData", C26, "T_CVol",, "T")) -> 280327 | L26: 26 | M26: =IFERROR(RANK($J26,INDIRECT(("$J$"&"1"&":$J$"&$A$103)))+COUNTIF($J$1:J26,J26)-1,"") -> 3 | N26: S.US.PRME | O26: S.US.EXAS
A27: =IF(Symbols!A27="","",Symbols!A27) -> S.US.QSI | B27: 1 | C27: S.US.QSI | D27: =IF(A27="","",RTD("cqg.rtd", ,"ContractData",C27, "LongDescription",, "T")) -> Quantum-Si Incorporated Class A | H27: =IF(A27="","",RTD("cqg.rtd", ,"ContractData",C27, "LastTradeToday",, "T")) -> 1.21 | I27: =IF(A27="","",RTD("cqg.rtd", ,"ContractData",C27, "NetLastTradeToday",, "T")) -> 0.03 | J27: =IF(A27="","",IFERROR(RTD("cqg.rtd", ,"ContractData",C27, "PerCentNetLastTrade",, "T")/100,"")) -> 0.02542372881 | K27: =IF(A27="","",RTD("cqg.rtd", ,"ContractData", C27, "T_CVol",, "T")) -> 917764 | L27: 27 | M27: =IFERROR(RANK($J27,INDIRECT(("$J$"&"1"&":$J$"&$A$103)))+COUNTIF($J$1:J27,J27)-1,"") -> 9 | N27: S.US.QSI | O27: S.US.INCY
A28: =IF(Symbols!A28="","",Symbols!A28) -> S.US.RXRX | B28: 1 | C28: S.US.RXRX | D28: =IF(A28="","",RTD("cqg.rtd", ,"ContractData",C28, "LongDescription",, "T")) -> Recursion Pharmaceuticals, Inc. Class A | H28: =IF(A28="","",RTD("cqg.rtd", ,"ContractData",C28, "LastTradeToday",, "T")) -> 5.05 | I28: =IF(A28="","",RTD("cqg.rtd", ,"ContractData",C28, "NetLastTradeToday",, "T")) -> 0.22 | J28: =IF(A28="","",IFERROR(RTD("cqg.rtd", ,"ContractData",C28, "PerCentNetLastTrade",, "T")/100,"")) -> 0.04554865424 | K28: =IF(A28="","",RTD("cqg.rtd", ,"ContractData", C28, "T_CVol",, "T")) -> 3083131 | L28: 28 | M28: =IFERROR(RANK($J28,INDIRECT(("$J$"&"1"&":$J$"&$A$103)))+COUNTIF($J$1:J28,J28)-1,"") -> 2 | N28: S.US.RXRX | O28: S.US.PSNL
A29: =IF(Symbols!A29="","",Symbols!A29) -> S.US.REGN | B29: 1 | C29: S.US.REGN | D29: =IF(A29="","",RTD("cqg.rtd", ,"ContractData",C29, "LongDescription",, "T")) -> Regeneron Pharm Inc | H29: =IF(A29="","",RTD("cqg.rtd", ,"ContractData",C29, "LastTradeToday",, "T")) -> 563.99 | I29: =IF(A29="","",RTD("cqg.rtd", ,"ContractData",C29, "NetLastTradeToday",, "T")) -> 3.99 | J29: =IF(A29="","",IFERROR(RTD("cqg.rtd", ,"ContractData",C29, "PerCentNetLastTrade",, "T")/100,"")) -> 0.007125 | K29: =IF(A29="","",RTD("cqg.rtd", ,"ContractData", C29, "T_CVol",, "T")) -> 29138 | L29: 29 | M29: =IFERROR(RANK($J29,INDIRECT(("$J$"&"1"&":$J$"&$A$103)))+COUNTIF($J$1:J29,J29)-1,"") -> 21 | N29: S.US.REGN | O29: S.US.AMGN
A30: =IF(Symbols!A30="","",Symbols!A30) -> S.US.SDGR | B30: 1 | C30: S.US.SDGR | D30: =IF(A30="","",RTD("cqg.rtd", ,"ContractData",C30, "LongDescription",, "T")) -> Schrodinger, Inc. | H30: =IF(A30="","",RTD("cqg.rtd", ,"ContractData",C30, "LastTradeToday",, "T")) -> 18.68 | I30: =IF(A30="","",RTD("cqg.rtd", ,"ContractData",C30, "NetLastTradeToday",, "T")) -> 0.11 | J30: =IF(A30="","",IFERROR(RTD("cqg.rtd", ,"ContractData",C30, "PerCentNetLastTrade",, "T")/100,"")) -> 0.005923532579 | K30: =IF(A30="","",RTD("cqg.rtd", ,"ContractData", C30, "T_CVol",, "T")) -> 18685 | L30: 30 | M30: =IFERROR(RANK($J30,INDIRECT(("$J$"&"1"&":$J$"&$A$103)))+COUNTIF($J$1:J30,J30)-1,"") -> 22 | N30: S.US.SDGR | O30: S.US.WGS
A31: =IF(Symbols!A31="","",Symbols!A31) -> S.US.LAB | B31: 0 | C31: S.US.LAB | D31: =IF(A31="","",RTD("cqg.rtd", ,"ContractData",C31, "LongDescription",, "T")) -> Standard BioTools Inc. | H31: =IF(A31="","",RTD("cqg.rtd", ,"ContractData",C31, "LastTradeToday",, "T")) -> 1.29 | I31: =IF(A31="","",RTD("cqg.rtd", ,"ContractData",C31, "NetLastTradeToday",, "T")) -> 0 | J31: =IF(A31="","",IFERROR(RTD("cqg.rtd", ,"ContractData",C31, "PerCentNetLastTrade",, "T")/100,"")) -> 0 | K31: =IF(A31="","",RTD("cqg.rtd", ,"ContractData", C31, "T_CVol",, "T")) -> 49076 | L31: 31 | M31: =IFERROR(RANK($J31,INDIRECT(("$J$"&"1"&":$J$"&$A$103)))+COUNTIF($J$1:J31,J31)-1,"") -> 31 | N31: S.US.LAB | O31: S.US.LAB
A32: =IF(Symbols!A32="","",Symbols!A32) -> S.US.TEM | B32: 1 | C32: S.US.TEM | D32: =IF(A32="","",RTD("cqg.rtd", ,"ContractData",C32, "LongDescription",, "T")) -> Tempus AI Inc. | H32: =IF(A32="","",RTD("cqg.rtd", ,"ContractData",C32, "LastTradeToday",, "T")) -> 87 | I32: =IF(A32="","",RTD("cqg.rtd", ,"ContractData",C32, "NetLastTradeToday",, "T")) -> 0.62 | J32: =IF(A32="","",IFERROR(RTD("cqg.rtd", ,"ContractData",C32, "PerCentNetLastTrade",, "T")/100,"")) -> 0.007177587404 | K32: =IF(A32="","",RTD("cqg.rtd", ,"ContractData", C32, "T_CVol",, "T")) -> 426303 | L32: 32 | M32: =IFERROR(RANK($J32,INDIRECT(("$J$"&"1"&":$J$"&$A$103)))+COUNTIF($J$1:J32,J32)-1,"") -> 20 | N32: S.US.TEM | O32: S.US.NTRA
A33: =IF(Symbols!A33="","",Symbols!A33) -> S.US.TWST | B33: 1 | C33: S.US.TWST | D33: =IF(A33="","",RTD("cqg.rtd", ,"ContractData",C33, "LongDescription",, "T")) -> Twist Bioscience Corporation | H33: =IF(A33="","",RTD("cqg.rtd", ,"ContractData",C33, "LastTradeToday",, "T")) -> 25.7 | I33: =IF(A33="","",RTD("cqg.rtd", ,"ContractData",C33, "NetLastTradeToday",, "T")) -> 0.39 | J33: =IF(A33="","",IFERROR(RTD("cqg.rtd", ,"ContractData",C33, "PerCentNetLastTrade",, "T")/100,"")) -> 0.01540892928 | K33: =IF(A33="","",RTD("cqg.rtd", ,"ContractData", C33, "T_CVol",, "T")) -> 51935 | L33: 33 | M33: =IFERROR(RANK($J33,INDIRECT(("$J$"&"1"&":$J$"&$A$103)))+COUNTIF($J$1:J33,J33)-1,"") -> 12 | N33: S.US.TWST | O33: S.US.CDNA
A34: =IF(Symbols!A34="","",Symbols!A34) -> S.US.VEEV | B34: 1 | C34: S.US.VEEV | D34: =IF(A34="","",RTD("cqg.rtd", ,"ContractData",C34, "LongDescription",, "T")) -> VEEVA Systems, Inc. | H34: =IF(A34="","",RTD("cqg.rtd", ,"ContractData",C34, "LastTradeToday",, "T")) -> 278.91 | I34: =IF(A34="","",RTD("cqg.rtd", ,"ContractData",C34, "NetLastTradeToday",, "T")) -> 2.48 | J34: =IF(A34="","",IFERROR(RTD("cqg.rtd", ,"ContractData",C34, "PerCentNetLastTrade",, "T")/100,"")) -> 0.008971529863 | K34: =IF(A34="","",RTD("cqg.rtd", ,"ContractData", C34, "T_CVol",, "T")) -> 63528 | L34: 34 | M34: =IFERROR(RANK($J34,INDIRECT(("$J$"&"1"&":$J$"&$A$103)))+COUNTIF($J$1:J34,J34)-1,"") -> 14 | N34: S.US.VEEV | O34: S.US.CMPS
A35: =IF(Symbols!A35="","",Symbols!A35) -> S.US.VCYT | B35: 1 | C35: S.US.VCYT | D35: =IF(A35="","",RTD("cqg.rtd", ,"ContractData",C35, "LongDescription",, "T")) -> Veracyte, Inc. | H35: =IF(A35="","",RTD("cqg.rtd", ,"ContractData",C35, "LastTradeToday",, "T")) -> 31.13 | I35: =IF(A35="","",RTD("cqg.rtd", ,"ContractData",C35, "NetLastTradeToday",, "T")) -> 0.25 | J35: =IF(A35="","",IFERROR(RTD("cqg.rtd", ,"ContractData",C35, "PerCentNetLastTrade",, "T")/100,"")) -> 0.008095854922 | K35: =IF(A35="","",RTD("cqg.rtd", ,"ContractData", C35, "T_CVol",, "T")) -> 8647 | L35: 35 | M35: =IFERROR(RANK($J35,INDIRECT(("$J$"&"1"&":$J$"&$A$103)))+COUNTIF($J$1:J35,J35)-1,"") -> 15 | N35: S.US.VCYT | O35: S.US.IONS
A36: =IF(Symbols!A36="","",Symbols!A36) -> S.US.VRTX | B36: 1 | C36: S.US.VRTX | D36: =IF(A36="","",RTD("cqg.rtd", ,"ContractData",C36, "LongDescription",, "T")) -> Vertex Pharmaceuticals Incorporated | H36: =IF(A36="","",RTD("cqg.rtd", ,"ContractData",C36, "LastTradeToday",, "T")) -> 397.5 | I36: =IF(A36="","",RTD("cqg.rtd", ,"ContractData",C36, "NetLastTradeToday",, "T")) -> 2.97 | J36: =IF(A36="","",IFERROR(RTD("cqg.rtd", ,"ContractData",C36, "PerCentNetLastTrade",, "T")/100,"")) -> 0.007527944643 | K36: =IF(A36="","",RTD("cqg.rtd", ,"ContractData", C36, "T_CVol",, "T")) -> 49750 | L36: 36 | M36: =IFERROR(RANK($J36,INDIRECT(("$J$"&"1"&":$J$"&$A$103)))+COUNTIF($J$1:J36,J36)-1,"") -> 18 | N36: S.US.VRTX | O36: S.US.GH
A37: =IF(Symbols!A37="","",Symbols!A37) ->  | D37: =IF(A37="","",RTD("cqg.rtd", ,"ContractData",C37, "LongDescription",, "T")) ->  | H37: =IF(A37="","",RTD("cqg.rtd", ,"ContractData",C37, "LastTradeToday",, "T")) ->  | I37: =IF(A37="","",RTD("cqg.rtd", ,"ContractData",C37, "NetLastTradeToday",, "T")) ->  | J37: =IF(A37="","",IFERROR(RTD("cqg.rtd", ,"ContractData",C37, "PerCentNetLastTrade",, "T")/100,"")) ->  | K37: =IF(A37="","",RTD("cqg.rtd", ,"ContractData", C37, "T_CVol",, "T")) ->  | L37: 37 | M37: =IFERROR(RANK($J37,INDIRECT(("$J$"&"1"&":$J$"&$A$103)))+COUNTIF($J$1:J37,J37)-1,"") -> 
A38: =IF(Symbols!A38="","",Symbols!A38) ->  | D38: =IF(A38="","",RTD("cqg.rtd", ,"ContractData",C38, "LongDescription",, "T")) ->  | H38: =IF(A38="","",RTD("cqg.rtd", ,"ContractData",C38, "LastTradeToday",, "T")) ->  | I38: =IF(A38="","",RTD("cqg.rtd", ,"ContractData",C38, "NetLastTradeToday",, "T")) ->  | J38: =IF(A38="","",IFERROR(RTD("cqg.rtd", ,"ContractData",C38, "PerCentNetLastTrade",, "T")/100,"")) ->  | K38: =IF(A38="","",RTD("cqg.rtd", ,"ContractData", C38, "T_CVol",, "T")) ->  | L38: 38 | M38: =IFERROR(RANK($J38,INDIRECT(("$J$"&"1"&":$J$"&$A$103)))+COUNTIF($J$1:J38,J38)-1,"") -> 
A39: =IF(Symbols!A39="","",Symbols!A39) ->  | D39: =IF(A39="","",RTD("cqg.rtd", ,"ContractData",C39, "LongDescription",, "T")) ->  | H39: =IF(A39="","",RTD("cqg.rtd", ,"ContractData",C39, "LastTradeToday",, "T")) ->  | I39: =IF(A39="","",RTD("cqg.rtd", ,"ContractData",C39, "NetLastTradeToday",, "T")) ->  | J39: =IF(A39="","",IFERROR(RTD("cqg.rtd", ,"ContractData",C39, "PerCentNetLastTrade",, "T")/100,"")) ->  | K39: =IF(A39="","",RTD("cqg.rtd", ,"ContractData", C39, "T_CVol",, "T")) ->  | L39: 39 | M39: =IFERROR(RANK($J39,INDIRECT(("$J$"&"1"&":$J$"&$A$103)))+COUNTIF($J$1:J39,J39)-1,"") -> 
A40: =IF(Symbols!A40="","",Symbols!A40) ->  | D40: =IF(A40="","",RTD("cqg.rtd", ,"ContractData",C40, "LongDescription",, "T")) ->  | H40: =IF(A40="","",RTD("cqg.rtd", ,"ContractData",C40, "LastTradeToday",, "T")) ->  | I40: =IF(A40="","",RTD("cqg.rtd", ,"ContractData",C40, "NetLastTradeToday",, "T")) ->  | J40: =IF(A40="","",IFERROR(RTD("cqg.rtd", ,"ContractData",C40, "PerCentNetLastTrade",, "T")/100,"")) ->  | K40: =IF(A40="","",RTD("cqg.rtd", ,"ContractData", C40, "T_CVol",, "T")) ->  | L40: 40 | M40: =IFERROR(RANK($J40,INDIRECT(("$J$"&"1"&":$J$"&$A$103)))+COUNTIF($J$1:J40,J40)-1,"") -> 
A41: =IF(Symbols!A41="","",Symbols!A41) ->  | D41: =IF(A41="","",RTD("cqg.rtd", ,"ContractData",C41, "LongDescription",, "T")) ->  | H41: =IF(A41="","",RTD("cqg.rtd", ,"ContractData",C41, "LastTradeToday",, "T")) ->  | I41: =IF(A41="","",RTD("cqg.rtd", ,"ContractData",C41, "NetLastTradeToday",, "T")) ->  | J41: =IF(A41="","",IFERROR(RTD("cqg.rtd", ,"ContractData",C41, "PerCentNetLastTrade",, "T")/100,"")) ->  | K41: =IF(A41="","",RTD("cqg.rtd", ,"ContractData", C41, "T_CVol",, "T")) ->  | L41: 41 | M41: =IFERROR(RANK($J41,INDIRECT(("$J$"&"1"&":$J$"&$A$103)))+COUNTIF($J$1:J41,J41)-1,"") -> 
A42: =IF(Symbols!A42="","",Symbols!A42) ->  | D42: =IF(A42="","",RTD("cqg.rtd", ,"ContractData",C42, "LongDescription",, "T")) ->  | H42: =IF(A42="","",RTD("cqg.rtd", ,"ContractData",C42, "LastTradeToday",, "T")) ->  | I42: =IF(A42="","",RTD("cqg.rtd", ,"ContractData",C42, "NetLastTradeToday",, "T")) ->  | J42: =IF(A42="","",IFERROR(RTD("cqg.rtd", ,"ContractData",C42, "PerCentNetLastTrade",, "T")/100,"")) ->  | K42: =IF(A42="","",RTD("cqg.rtd", ,"ContractData", C42, "T_CVol",, "T")) ->  | L42: 42 | M42: =IFERROR(RANK($J42,INDIRECT(("$J$"&"1"&":$J$"&$A$103)))+COUNTIF($J$1:J42,J42)-1,"") -> 
A43: =IF(Symbols!A43="","",Symbols!A43) ->  | D43: =IF(A43="","",RTD("cqg.rtd", ,"ContractData",C43, "LongDescription",, "T")) ->  | H43: =IF(A43="","",RTD("cqg.rtd", ,"ContractData",C43, "LastTradeToday",, "T")) ->  | I43: =IF(A43="","",RTD("cqg.rtd", ,"ContractData",C43, "NetLastTradeToday",, "T")) ->  | J43: =IF(A43="","",IFERROR(RTD("cqg.rtd", ,"ContractData",C43, "PerCentNetLastTrade",, "T")/100,"")) ->  | K43: =IF(A43="","",RTD("cqg.rtd", ,"ContractData", C43, "T_CVol",, "T")) ->  | L43: 43 | M43: =IFERROR(RANK($J43,INDIRECT(("$J$"&"1"&":$J$"&$A$103)))+COUNTIF($J$1:J43,J43)-1,"") -> 
A44: =IF(Symbols!A44="","",Symbols!A44) ->  | D44: =IF(A44="","",RTD("cqg.rtd", ,"ContractData",C44, "LongDescription",, "T")) ->  | H44: =IF(A44="","",RTD("cqg.rtd", ,"ContractData",C44, "LastTradeToday",, "T")) ->  | I44: =IF(A44="","",RTD("cqg.rtd", ,"ContractData",C44, "NetLastTradeToday",, "T")) ->  | J44: =IF(A44="","",IFERROR(RTD("cqg.rtd", ,"ContractData",C44, "PerCentNetLastTrade",, "T")/100,"")) ->  | K44: =IF(A44="","",RTD("cqg.rtd", ,"ContractData", C44, "T_CVol",, "T")) ->  | L44: 44 | M44: =IFERROR(RANK($J44,INDIRECT(("$J$"&"1"&":$J$"&$A$103)))+COUNTIF($J$1:J44,J44)-1,"") -> 
A45: =IF(Symbols!A45="","",Symbols!A45) ->  | D45: =IF(A45="","",RTD("cqg.rtd", ,"ContractData",C45, "LongDescription",, "T")) ->  | H45: =IF(A45="","",RTD("cqg.rtd", ,"ContractData",C45, "LastTradeToday",, "T")) ->  | I45: =IF(A45="","",RTD("cqg.rtd", ,"ContractData",C45, "NetLastTradeToday",, "T")) ->  | J45: =IF(A45="","",IFERROR(RTD("cqg.rtd", ,"ContractData",C45, "PerCentNetLastTrade",, "T")/100,"")) ->  | K45: =IF(A45="","",RTD("cqg.rtd", ,"ContractData", C45, "T_CVol",, "T")) ->  | L45: 45 | M45: =IFERROR(RANK($J45,INDIRECT(("$J$"&"1"&":$J$"&$A$103)))+COUNTIF($J$1:J45,J45)-1,"") -> 
A46: =IF(Symbols!A46="","",Symbols!A46) ->  | D46: =IF(A46="","",RTD("cqg.rtd", ,"ContractData",C46, "LongDescription",, "T")) ->  | H46: =IF(A46="","",RTD("cqg.rtd", ,"ContractData",C46, "LastTradeToday",, "T")) ->  | I46: =IF(A46="","",RTD("cqg.rtd", ,"ContractData",C46, "NetLastTradeToday",, "T")) ->  | J46: =IF(A46="","",IFERROR(RTD("cqg.rtd", ,"ContractData",C46, "PerCentNetLastTrade",, "T")/100,"")) ->  | K46: =IF(A46="","",RTD("cqg.rtd", ,"ContractData", C46, "T_CVol",, "T")) ->  | L46: 46 | M46: =IFERROR(RANK($J46,INDIRECT(("$J$"&"1"&":$J$"&$A$103)))+COUNTIF($J$1:J46,J46)-1,"") -> 
A47: =IF(Symbols!A47="","",Symbols!A47) ->  | D47: =IF(A47="","",RTD("cqg.rtd", ,"ContractData",C47, "LongDescription",, "T")) ->  | H47: =IF(A47="","",RTD("cqg.rtd", ,"ContractData",C47, "LastTradeToday",, "T")) ->  | I47: =IF(A47="","",RTD("cqg.rtd", ,"ContractData",C47, "NetLastTradeToday",, "T")) ->  | J47: =IF(A47="","",IFERROR(RTD("cqg.rtd", ,"ContractData",C47, "PerCentNetLastTrade",, "T")/100,"")) ->  | K47: =IF(A47="","",RTD("cqg.rtd", ,"ContractData", C47, "T_CVol",, "T")) ->  | L47: 47 | M47: =IFERROR(RANK($J47,INDIRECT(("$J$"&"1"&":$J$"&$A$103)))+COUNTIF($J$1:J47,J47)-1,"") -> 
A48: =IF(Symbols!A48="","",Symbols!A48) ->  | D48: =IF(A48="","",RTD("cqg.rtd", ,"ContractData",C48, "LongDescription",, "T")) ->  | H48: =IF(A48="","",RTD("cqg.rtd", ,"ContractData",C48, "LastTradeToday",, "T")) ->  | I48: =IF(A48="","",RTD("cqg.rtd", ,"ContractData",C48, "NetLastTradeToday",, "T")) ->  | J48: =IF(A48="","",IFERROR(RTD("cqg.rtd", ,"ContractData",C48, "PerCentNetLastTrade",, "T")/100,"")) ->  | K48: =IF(A48="","",RTD("cqg.rtd", ,"ContractData", C48, "T_CVol",, "T")) ->  | L48: 48 | M48: =IFERROR(RANK($J48,INDIRECT(("$J$"&"1"&":$J$"&$A$103)))+COUNTIF($J$1:J48,J48)-1,"") -> 
A49: =IF(Symbols!A49="","",Symbols!A49) ->  | D49: =IF(A49="","",RTD("cqg.rtd", ,"ContractData",C49, "LongDescription",, "T")) ->  | H49: =IF(A49="","",RTD("cqg.rtd", ,"ContractData",C49, "LastTradeToday",, "T")) ->  | I49: =IF(A49="","",RTD("cqg.rtd", ,"ContractData",C49, "NetLastTradeToday",, "T")) ->  | J49: =IF(A49="","",IFERROR(RTD("cqg.rtd", ,"ContractData",C49, "PerCentNetLastTrade",, "T")/100,"")) ->  | K49: =IF(A49="","",RTD("cqg.rtd", ,"ContractData", C49, "T_CVol",, "T")) ->  | L49: 49 | M49: =IFERROR(RANK($J49,INDIRECT(("$J$"&"1"&":$J$"&$A$103)))+COUNTIF($J$1:J49,J49)-1,"") -> 
A50: =IF(Symbols!A50="","",Symbols!A50) ->  | D50: =IF(A50="","",RTD("cqg.rtd", ,"ContractData",C50, "LongDescription",, "T")) ->  | H50: =IF(A50="","",RTD("cqg.rtd", ,"ContractData",C50, "LastTradeToday",, "T")) ->  | I50: =IF(A50="","",RTD("cqg.rtd", ,"ContractData",C50, "NetLastTradeToday",, "T")) ->  | J50: =IF(A50="","",IFERROR(RTD("cqg.rtd", ,"ContractData",C50, "PerCentNetLastTrade",, "T")/100,"")) ->  | K50: =IF(A50="","",RTD("cqg.rtd", ,"ContractData", C50, "T_CVol",, "T")) ->  | L50: 50 | M50: =IFERROR(RANK($J50,INDIRECT(("$J$"&"1"&":$J$"&$A$103)))+COUNTIF($J$1:J50,J50)-1,"") -> 
A51: =IF(Symbols!A51="","",Symbols!A51) ->  | D51: =IF(A51="","",RTD("cqg.rtd", ,"ContractData",C51, "LongDescription",, "T")) ->  | H51: =IF(A51="","",RTD("cqg.rtd", ,"ContractData",C51, "LastTradeToday",, "T")) ->  | I51: =IF(A51="","",RTD("cqg.rtd", ,"ContractData",C51, "NetLastTradeToday",, "T")) ->  | J51: =IF(A51="","",IFERROR(RTD("cqg.rtd", ,"ContractData",C51, "PerCentNetLastTrade",, "T")/100,"")) ->  | K51: =IF(A51="","",RTD("cqg.rtd", ,"ContractData", C51, "T_CVol",, "T")) ->  | L51: 51 | M51: =IFERROR(RANK($J51,INDIRECT(("$J$"&"1"&":$J$"&$A$103)))+COUNTIF($J$1:J51,J51)-1,"") -> 
A52: =IF(Symbols!A52="","",Symbols!A52) ->  | D52: =IF(A52="","",RTD("cqg.rtd", ,"ContractData",C52, "LongDescription",, "T")) ->  | H52: =IF(A52="","",RTD("cqg.rtd", ,"ContractData",C52, "LastTradeToday",, "T")) ->  | I52: =IF(A52="","",RTD("cqg.rtd", ,"ContractData",C52, "NetLastTradeToday",, "T")) ->  | J52: =IF(A52="","",IFERROR(RTD("cqg.rtd", ,"ContractData",C52, "PerCentNetLastTrade",, "T")/100,"")) ->  | K52: =IF(A52="","",RTD("cqg.rtd", ,"ContractData", C52, "T_CVol",, "T")) ->  | L52: 52 | M52: =IFERROR(RANK($J52,INDIRECT(("$J$"&"1"&":$J$"&$A$103)))+COUNTIF($J$1:J52,J52)-1,"") -> 
A53: =IF(Symbols!A53="","",Symbols!A53) ->  | D53: =IF(A53="","",RTD("cqg.rtd", ,"ContractData",C53, "LongDescription",, "T")) ->  | H53: =IF(A53="","",RTD("cqg.rtd", ,"ContractData",C53, "LastTradeToday",, "T")) ->  | I53: =IF(A53="","",RTD("cqg.rtd", ,"ContractData",C53, "NetLastTradeToday",, "T")) ->  | J53: =IF(A53="","",IFERROR(RTD("cqg.rtd", ,"ContractData",C53, "PerCentNetLastTrade",, "T")/100,"")) ->  | K53: =IF(A53="","",RTD("cqg.rtd", ,"ContractData", C53, "T_CVol",, "T")) ->  | L53: 53 | M53: =IFERROR(RANK($J53,INDIRECT(("$J$"&"1"&":$J$"&$A$103)))+COUNTIF($J$1:J53,J53)-1,"") -> 
A54: =IF(Symbols!A54="","",Symbols!A54) ->  | D54: =IF(A54="","",RTD("cqg.rtd", ,"ContractData",C54, "LongDescription",, "T")) ->  | H54: =IF(A54="","",RTD("cqg.rtd", ,"ContractData",C54, "LastTradeToday",, "T")) ->  | I54: =IF(A54="","",RTD("cqg.rtd", ,"ContractData",C54, "NetLastTradeToday",, "T")) ->  | J54: =IF(A54="","",IFERROR(RTD("cqg.rtd", ,"ContractData",C54, "PerCentNetLastTrade",, "T")/100,"")) ->  | K54: =IF(A54="","",RTD("cqg.rtd", ,"ContractData", C54, "T_CVol",, "T")) ->  | L54: 54 | M54: =IFERROR(RANK($J54,INDIRECT(("$J$"&"1"&":$J$"&$A$103)))+COUNTIF($J$1:J54,J54)-1,"") -> 
A55: =IF(Symbols!A55="","",Symbols!A55) ->  | D55: =IF(A55="","",RTD("cqg.rtd", ,"ContractData",C55, "LongDescription",, "T")) ->  | H55: =IF(A55="","",RTD("cqg.rtd", ,"ContractData",C55, "LastTradeToday",, "T")) ->  | I55: =IF(A55="","",RTD("cqg.rtd", ,"ContractData",C55, "NetLastTradeToday",, "T")) ->  | J55: =IF(A55="","",IFERROR(RTD("cqg.rtd", ,"ContractData",C55, "PerCentNetLastTrade",, "T")/100,"")) ->  | K55: =IF(A55="","",RTD("cqg.rtd", ,"ContractData", C55, "T_CVol",, "T")) ->  | L55: 55 | M55: =IFERROR(RANK($J55,INDIRECT(("$J$"&"1"&":$J$"&$A$103)))+COUNTIF($J$1:J55,J55)-1,"") -> 
A56: =IF(Symbols!A56="","",Symbols!A56) ->  | D56: =IF(A56="","",RTD("cqg.rtd", ,"ContractData",C56, "LongDescription",, "T")) ->  | H56: =IF(A56="","",RTD("cqg.rtd", ,"ContractData",C56, "LastTradeToday",, "T")) ->  | I56: =IF(A56="","",RTD("cqg.rtd", ,"ContractData",C56, "NetLastTradeToday",, "T")) ->  | J56: =IF(A56="","",IFERROR(RTD("cqg.rtd", ,"ContractData",C56, "PerCentNetLastTrade",, "T")/100,"")) ->  | K56: =IF(A56="","",RTD("cqg.rtd", ,"ContractData", C56, "T_CVol",, "T")) ->  | L56: 56 | M56: =IFERROR(RANK($J56,INDIRECT(("$J$"&"1"&":$J$"&$A$103)))+COUNTIF($J$1:J56,J56)-1,"") -> 
A57: =IF(Symbols!A57="","",Symbols!A57) ->  | D57: =IF(A57="","",RTD("cqg.rtd", ,"ContractData",C57, "LongDescription",, "T")) ->  | H57: =IF(A57="","",RTD("cqg.rtd", ,"ContractData",C57, "LastTradeToday",, "T")) ->  | I57: =IF(A57="","",RTD("cqg.rtd", ,"ContractData",C57, "NetLastTradeToday",, "T")) ->  | J57: =IF(A57="","",IFERROR(RTD("cqg.rtd", ,"ContractData",C57, "PerCentNetLastTrade",, "T")/100,"")) ->  | K57: =IF(A57="","",RTD("cqg.rtd", ,"ContractData", C57, "T_CVol",, "T")) ->  | L57: 57 | M57: =IFERROR(RANK($J57,INDIRECT(("$J$"&"1"&":$J$"&$A$103)))+COUNTIF($J$1:J57,J57)-1,"") -> 
A58: =IF(Symbols!A58="","",Symbols!A58) ->  | D58: =IF(A58="","",RTD("cqg.rtd", ,"ContractData",C58, "LongDescription",, "T")) ->  | H58: =IF(A58="","",RTD("cqg.rtd", ,"ContractData",C58, "LastTradeToday",, "T")) ->  | I58: =IF(A58="","",RTD("cqg.rtd", ,"ContractData",C58, "NetLastTradeToday",, "T")) ->  | J58: =IF(A58="","",IFERROR(RTD("cqg.rtd", ,"ContractData",C58, "PerCentNetLastTrade",, "T")/100,"")) ->  | K58: =IF(A58="","",RTD("cqg.rtd", ,"ContractData", C58, "T_CVol",, "T")) ->  | L58: 58 | M58: =IFERROR(RANK($J58,INDIRECT(("$J$"&"1"&":$J$"&$A$103)))+COUNTIF($J$1:J58,J58)-1,"") -> 
A59: =IF(Symbols!A59="","",Symbols!A59) ->  | D59: =IF(A59="","",RTD("cqg.rtd", ,"ContractData",C59, "LongDescription",, "T")) ->  | H59: =IF(A59="","",RTD("cqg.rtd", ,"ContractData",C59, "LastTradeToday",, "T")) ->  | I59: =IF(A59="","",RTD("cqg.rtd", ,"ContractData",C59, "NetLastTradeToday",, "T")) ->  | J59: =IF(A59="","",IFERROR(RTD("cqg.rtd", ,"ContractData",C59, "PerCentNetLastTrade",, "T")/100,"")) ->  | K59: =IF(A59="","",RTD("cqg.rtd", ,"ContractData", C59, "T_CVol",, "T")) ->  | L59: 59 | M59: =IFERROR(RANK($J59,INDIRECT(("$J$"&"1"&":$J$"&$A$103)))+COUNTIF($J$1:J59,J59)-1,"") -> 
A60: =IF(Symbols!A60="","",Symbols!A60) ->  | D60: =IF(A60="","",RTD("cqg.rtd", ,"ContractData",C60, "LongDescription",, "T")) ->  | H60: =IF(A60="","",RTD("cqg.rtd", ,"ContractData",C60, "LastTradeToday",, "T")) ->  | I60: =IF(A60="","",RTD("cqg.rtd", ,"ContractData",C60, "NetLastTradeToday",, "T")) ->  | J60: =IF(A60="","",IFERROR(RTD("cqg.rtd", ,"ContractData",C60, "PerCentNetLastTrade",, "T")/100,"")) ->  | K60: =IF(A60="","",RTD("cqg.rtd", ,"ContractData", C60, "T_CVol",, "T")) ->  | L60: 60 | M60: =IFERROR(RANK($J60,INDIRECT(("$J$"&"1"&":$J$"&$A$103)))+COUNTIF($J$1:J60,J60)-1,"") -> 
A103: =60-COUNTIF(A1:A60,"") -> 36 | B103: =SUM(B1:B101)/A103 -> 0.8333333333
A104: ="$J$1:$J$"&A103 -> $J$1:$J$36

Sheet Symbols
A1: S.US.TXG | B1: =IF(A1="","",RTD("cqg.rtd", ,"ContractData",A1, "LongDescription",, "T")) -> 10x Genomics, Inc. Class A | G1: https://www.ark-funds.com/funds/arkg#hold | M1: Last Symbol update was 9/12/2025
A2: S.US.MASS | B2: =IF(A2="","",RTD("cqg.rtd", ,"ContractData",A2, "LongDescription",, "T")) -> 908 Devices Inc.
A3: S.US.ABSI | B3: =IF(A3="","",RTD("cqg.rtd", ,"ContractData",A3, "LongDescription",, "T")) -> Absci Corporation
A4: S.US.ADPT | B4: =IF(A4="","",RTD("cqg.rtd", ,"ContractData",A4, "LongDescription",, "T")) -> Adaptive Biotechnologies Corporation
A5: S.US.AMGN | B5: =IF(A5="","",RTD("cqg.rtd", ,"ContractData",A5, "LongDescription",, "T")) -> Amgen Inc
A6: S.US.ARCT | B6: =IF(A6="","",RTD("cqg.rtd", ,"ContractData",A6, "LongDescription",, "T")) -> Arcturus Therapeutics Holdings Inc.
A7: S.US.ATAI | B7: =IF(A7="","",RTD("cqg.rtd", ,"ContractData",A7, "LongDescription",, "T")) -> ATAI Life Sciences N.V.
A8: S.US.BEAM | B8: =IF(A8="","",RTD("cqg.rtd", ,"ContractData",A8, "LongDescription",, "T")) -> Beam Therapeutics Inc.
A9: S.US.BFLY | B9: =IF(A9="","",RTD("cqg.rtd", ,"ContractData",A9, "LongDescription",, "T")) -> Butterfly Network, Inc.
A10: S.US.CDNA | B10: =IF(A10="","",RTD("cqg.rtd", ,"ContractData",A10, "LongDescription",, "T")) -> CareDx, Inc.
A11: S.US.CAI | B11: =IF(A11="","",RTD("cqg.rtd", ,"ContractData",A11, "LongDescription",, "T")) -> Caris Life Sciences, Inc.
A12: S.US.CERS | B12: =IF(A12="","",RTD("cqg.rtd", ,"ContractData",A12, "LongDescription",, "T")) -> Cerus Corp
A13: S.US.CMPS | B13: =IF(A13="","",RTD("cqg.rtd", ,"ContractData",A13, "LongDescription",, "T")) -> COMPASS Pathways Plc
A14: S.US.CRSP | B14: =IF(A14="","",RTD("cqg.rtd", ,"ContractData",A14, "LongDescription",, "T")) -> CRISPR Therapeutics AG
A15: S.US.EXAS | B15: =IF(A15="","",RTD("cqg.rtd", ,"ContractData",A15, "LongDescription",, "T")) -> EXACT Sciences Corp
A16: S.US.WGS | B16: =IF(A16="","",RTD("cqg.rtd", ,"ContractData",A16, "LongDescription",, "T")) -> GeneDx Holdings Corp.
A17: S.US.GH | B17: =IF(A17="","",RTD("cqg.rtd", ,"ContractData",A17, "LongDescription",, "T")) -> Guardant Health, Inc.
A18: S.US.ILMN | B18: =IF(A18="","",RTD("cqg.rtd", ,"ContractData",A18, "LongDescription",, "T")) -> Illumina Inc | C18: To update the Ticker List:
A19: S.US.INCY | B19: =IF(A19="","",RTD("cqg.rtd", ,"ContractData",A19, "LongDescription",, "T")) -> Incyte Corporation
A20: S.US.NTLA | B20: =IF(A20="","",RTD("cqg.rtd", ,"ContractData",A20, "LongDescription",, "T")) -> Intellia Therapeutics, Inc.
A21: S.US.IONS | B21: =IF(A21="","",RTD("cqg.rtd", ,"ContractData",A21, "LongDescription",, "T")) -> Ionis Pharmaceuticals, Inc. | C21: 1) From their Web site download
A22: S.US.NTRA | B22: =IF(A22="","",RTD("cqg.rtd", ,"ContractData",A22, "LongDescription",, "T")) -> Natera, Inc. | C22: the CSV File.
A23: S.US.NRIX | B23: =IF(A23="","",RTD("cqg.rtd", ,"ContractData",A23, "LongDescription",, "T")) -> Nurix Therapeutics, Inc
A24: S.US.PACB | B24: =IF(A24="","",RTD("cqg.rtd", ,"ContractData",A24, "LongDescription",, "T")) -> Pacific Biosciences of California, Inc.
A25: S.US.PSNL | B25: =IF(A25="","",RTD("cqg.rtd", ,"ContractData",A25, "LongDescription",, "T")) -> Personalis, Inc. | C25: 2) Copy the Tickers from the file.
A26: S.US.PRME | B26: =IF(A26="","",RTD("cqg.rtd", ,"ContractData",A26, "LongDescription",, "T")) -> Prime Medicine, Inc. | C26: Merge "S.US." to the Tickers. ="S.US."&H26 | H26: NVDA
A27: S.US.QSI | B27: =IF(A27="","",RTD("cqg.rtd", ,"ContractData",A27, "LongDescription",, "T")) -> Quantum-Si Incorporated Class A | G27: ="S.US."&H26 -> S.US.NVDA
A28: S.US.RXRX | B28: =IF(A28="","",RTD("cqg.rtd", ,"ContractData",A28, "LongDescription",, "T")) -> Recursion Pharmaceuticals, Inc. Class A
A29: S.US.REGN | B29: =IF(A29="","",RTD("cqg.rtd", ,"ContractData",A29, "LongDescription",, "T")) -> Regeneron Pharm Inc | C29: 3) Remove money market fund tickers.
A30: S.US.SDGR | B30: =IF(A30="","",RTD("cqg.rtd", ,"ContractData",A30, "LongDescription",, "T")) -> Schrodinger, Inc.
A31: S.US.LAB | B31: =IF(A31="","",RTD("cqg.rtd", ,"ContractData",A31, "LongDescription",, "T")) -> Standard BioTools Inc.
A32: S.US.TEM | B32: =IF(A32="","",RTD("cqg.rtd", ,"ContractData",A32, "LongDescription",, "T")) -> Tempus AI Inc. | C32: 4) Copy and Paste "As Values" the updated Ticker List to column A.
A33: S.US.TWST | B33: =IF(A33="","",RTD("cqg.rtd", ,"ContractData",A33, "LongDescription",, "T")) -> Twist Bioscience Corporation
A34: S.US.VEEV | B34: =IF(A34="","",RTD("cqg.rtd", ,"ContractData",A34, "LongDescription",, "T")) -> VEEVA Systems, Inc.
A35: S.US.VCYT | B35: =IF(A35="","",RTD("cqg.rtd", ,"ContractData",A35, "LongDescription",, "T")) -> Veracyte, Inc.
A36: S.US.VRTX | B36: =IF(A36="","",RTD("cqg.rtd", ,"ContractData",A36, "LongDescription",, "T")) -> Vertex Pharmaceuticals Incorporated
B37: =IF(A37="","",RTD("cqg.rtd", ,"ContractData",A37, "LongDescription",, "T")) -> 
B38: =IF(A38="","",RTD("cqg.rtd", ,"ContractData",A38, "LongDescription",, "T")) -> 
B39: =IF(A39="","",RTD("cqg.rtd", ,"ContractData",A39, "LongDescription",, "T")) -> 
B40: =IF(A40="","",RTD("cqg.rtd", ,"ContractData",A40, "LongDescription",, "T")) -> 
B41: =IF(A41="","",RTD("cqg.rtd", ,"ContractData",A41, "LongDescription",, "T")) -> 
B42: =IF(A42="","",RTD("cqg.rtd", ,"ContractData",A42, "LongDescription",, "T")) -> 
B43: =IF(A43="","",RTD("cqg.rtd", ,"ContractData",A43, "LongDescription",, "T")) -> 
B44: =IF(A44="","",RTD("cqg.rtd", ,"ContractData",A44, "LongDescription",, "T")) -> 
B45: =IF(A45="","",RTD("cqg.rtd", ,"ContractData",A45, "LongDescription",, "T")) -> 
B46: =IF(A46="","",RTD("cqg.rtd", ,"ContractData",A46, "LongDescription",, "T")) -> 
B47: =IF(A47="","",RTD("cqg.rtd", ,"ContractData",A47, "LongDescription",, "T")) -> 
B48: =IF(A48="","",RTD("cqg.rtd", ,"ContractData",A48, "LongDescription",, "T")) -> 
B49: =IF(A49="","",RTD("cqg.rtd", ,"ContractData",A49, "LongDescription",, "T")) -> 
B50: =IF(A50="","",RTD("cqg.rtd", ,"ContractData",A50, "LongDescription",, "T")) -> 
B51: =IF(A51="","",RTD("cqg.rtd", ,"ContractData",A51, "LongDescription",, "T")) -> 
B52: =IF(A52="","",RTD("cqg.rtd", ,"ContractData",A52, "LongDescription",, "T")) -> 
B53: =IF(A53="","",RTD("cqg.rtd", ,"ContractData",A53, "LongDescription",, "T")) -> 
B54: =IF(A54="","",RTD("cqg.rtd", ,"ContractData",A54, "LongDescription",, "T")) -> 
B55: =IF(A55="","",RTD("cqg.rtd", ,"ContractData",A55, "LongDescription",, "T")) -> 
B56: =IF(A56="","",RTD("cqg.rtd", ,"ContractData",A56, "LongDescription",, "T")) -> 
B57: =IF(A57="","",RTD("cqg.rtd", ,"ContractData",A57, "LongDescription",, "T")) -> 
B58: =IF(A58="","",RTD("cqg.rtd", ,"ContractData",A58, "LongDescription",, "T")) -> 
B59: =IF(A59="","",RTD("cqg.rtd", ,"ContractData",A59, "LongDescription",, "T")) -> 
B60: =IF(A60="","",RTD("cqg.rtd", ,"ContractData",A60, "LongDescription",, "T")) -> 
